Workbook

Sheet План
B1: План 2016 года
A3: № заказа | B3: Обозначение | C3: Наименование | D3: Январь | E3: Февраль | F3: Март | G3: Апрель | H3: Май | I3: Июнь | J3: Июль | K3: Август | L3: Сентябрь | M3: Октябрь | N3: Ноябрь | O3: Декабрь
A5: ОО8 | B5: Изделие1 | C5: Наименование1 | D5: 48 | E5: 44 | F5: 40 | G5: 31 | H5: 41 | I5: 24 | J5: 19 | L5: 22 | M5: 35
A6: ОО8 | B6: Изделие2 | C6: Наименование2 | D6: 70 | E6: 28 | I6: 82 | J6: 152 | L6: 260 | M6: 238
A7: ОО8 | B7: Изделие3 | C7: Наименование3 | I7: 5 | J7: 4 | L7: 22 | M7: 23
A8: ОО8 | B8: Изделие4 | C8: Наименование4 | I8: 10 | J8: 8 | L8: 44 | M8: 46
A9: ОО8 | B9: Изделие5 | C9: Наименование5 | M9: 9
A10: ОО8 | B10: Изделие6 | C10: Наименование6 | M10: 9
A11: ОО8 | B11: Изделие7 | C11: Наименование7 | M11: 9
A12: ОО8 | B12: Изделие8 | C12: Наименование8 | D12: 48 | E12: 44 | F12: 40 | G12: 31 | H12: 41 | I12: 19 | J12: 15 | M12: 12
A13: ОО8 | B13: Изделие9 | C13: Наименование9 | D13: 48 | E13: 44 | F13: 40 | G13: 31 | H13: 41 | I13: 19 | J13: 15 | M13: 12
A14: ОО8 | B14: Изделие10 | C14: Наименование10 | D14: 5 | E14: 2 | I14: 3 | J14: 11 | L14: 12 | M14: 2
A15: ОО8 | B15: Изделие11 | C15: Наименование11 | D15: 10 | E15: 4 | I15: 6 | J15: 16 | L15: 12
A16: ОО8 | B16: Изделие12 | C16: Наименование12 | D16: 5 | E16: 2 | I16: 3 | J16: 9 | L16: 8 | M16: 2
A17: ОО8 | B17: Изделие13 | C17: Наименование13 | J17: 28 | L17: 28 | M17: 28
A18: ОО8 | B18: Изделие14 | C18: Наименование14 | J18: 4 | L18: 4 | M18: 4
A19: ОО8 | B19: Изделие15 | C19: Наименование15 | J19: 2

Sheet Дефицит
A2: № заказа | B2: Цех | D2: Обозначение | E2: Наименование | F2: Материал | I2: Производитель | J2: Стоим. б/ндс | K2: Январь | L2: Февраль | M2: Март | N2: Апрель | O2: Май | P2: Июнь | Q2: Июль | R2: Август | S2: Сентябрь | T2: Октябрь | U2: Ноябрь | V2: Декабрь
A3: OO8 | B3: 60 | D3: ФКГП185.00.00.007 | E3: болт | F3: OO8 | I3: ООО"Конвент" | J3: 112 | K3: 110 | L3: 110 | M3: 110 | N3: -1390 | O3: -1690 | P3: -1690 | Q3: -1690 | R3: -1690 | S3: -1690 | T3: -1690 | U3: -1690 | V3: -1690
A4: O23 | B4: 60 | D4: ФКГП112.00.003 | E4: Пружина | F4: Проволока Б-2 Ф1 | I4: ООО"Охта" | J4: 4.1 | L4: -100 | M4: -100 | N4: -100 | O4: -300 | P4: -300 | Q4: -300 | R4: -300 | S4: -300 | T4: -300 | U4: -300 | V4: -300
A5: 576 | B5: 60 | D5: ФКГП 576.50.00.002-02 | E5: Прокладка | F5: Нет чертежа | T5: -66 | U5: 33 | V5: -300

Sheet Литье
A2: № заказа | B2: Цех | C2: Обозначение | D2: Наименование | E2: Производитель | G2: Стоим. б/ндс (руб.) | H2: Дифицит (шт) | U2: Дифицит (руб)
H3: Январь | I3: Февраль | J3: Март | K3: Апрель | L3: Май | M3: Июнь | N3: Июль | O3: Август | P3: Сентябрь | Q3: Октябрь | R3: Ноябрь | S3: Декабрь | U3: Январь | V3: Февраль | W3: Март | X3: Апрель | Y3: Май | Z3: Июнь | AA3: Июль | AB3: Август | AC3: Сентябрь | AD3: Октябрь | AE3: Ноябрь | AF3: Декабрь
A5: 008 | B5: ='008'!B20 -> 10 | C5: ='008'!D20 -> ФКГП185.00.00.002 | D5: ='008'!E20 -> гайка | E5: ='008'!BA20 -> 0 | G5: 22.22 | H5: ='008'!BI20 -> 0 | I5: ='008'!BP20 -> 0 | J5: ='008'!BW20 -> 0 | K5: ='008'!CD20 -> -1500 | L5: ='008'!CK20 -> -1800 | M5: ='008'!CR20 -> -1800 | N5: ='008'!CY20 -> -1800 | O5: ='008'!DF20 -> -1800 | P5: ='008'!DF20 -> -1800 | Q5: ='008'!DT20 -> -1800 | R5: ='008'!EA20 -> -1800 | S5: ='008'!EH20 -> -1800 | U5: =$G5*H5 -> 0 | V5: =$G5*I5 -> 0 | W5: 0 | X5: -33330 | Y5: -39996 | Z5: -39996 | AA5: -39996 | AB5: -39996 | AC5: -39996 | AD5: -39996 | AE5: -39996 | AF5: -39996

Sheet 008
E2: План | F2: Январь | G2: =SUMPRODUCT(План!$D$5:$O$19*(План!$B$5:$B$19='008'!G$16)*('008'!$F2=План!$D$3:$O$3)) -> 0 | H2: =SUMPRODUCT(План!$D$5:$O$19*(План!$B$5:$B$19='008'!H$16)*('008'!$F2=План!$D$3:$O$3)) -> 0 | I2: =SUMPRODUCT(План!$D$5:$O$19*(План!$B$5:$B$19='008'!I$16)*('008'!$F2=План!$D$3:$O$3)) -> 0 | J2: =SUMPRODUCT(План!$D$5:$O$19*(План!$B$5:$B$19='008'!J$16)*('008'!$F2=План!$D$3:$O$3)) -> 0 | K2: =SUMPRODUCT(План!$D$5:$O$19*(План!$B$5:$B$19='008'!K$16)*('008'!$F2=План!$D$3:$O$3)) -> 0 | L2: =SUMPRODUCT(План!$D$5:$O$19*(План!$B$5:$B$19='008'!L$16)*('008'!$F2=План!$D$3:$O$3)) -> 0 | M2: =SUMPRODUCT(План!$D$5:$O$19*(План!$B$5:$B$19='008'!M$16)*('008'!$F2=План!$D$3:$O$3)) -> 0 | N2: =SUMPRODUCT(План!$D$5:$O$19*(План!$B$5:$B$19='008'!N$16)*('008'!$F2=План!$D$3:$O$3)) -> 0 | O2: =SUMPRODUCT(План!$D$5:$O$19*(План!$B$5:$B$19='008'!O$16)*('008'!$F2=План!$D$3:$O$3)) -> 0 | P2: =SUMPRODUCT(План!$D$5:$O$19*(План!$B$5:$B$19='008'!P$16)*('008'!$F2=План!$D$3:$O$3)) -> 0 | Q2: =SUMPRODUCT(План!$D$5:$O$19*(План!$B$5:$B$19='008'!Q$16)*('008'!$F2=План!$D$3:$O$3)) -> 0 | R2: =SUMPRODUCT(План!$D$5:$O$19*(План!$B$5:$B$19='008'!R$16)*('008'!$F2=План!$D$3:$O$3)) -> 0 | S2: =SUMPRODUCT(План!$D$5:$O$19*(План!$B$5:$B$19='008'!S$16)*('008'!$F2=План!$D$3:$O$3)) -> 0 | T2: =SUMPRODUCT(План!$D$5:$O$19*(План!$B$5:$B$19='008'!T$16)*('008'!$F2=План!$D$3:$O$3)) -> 0 | U2: =SUMPRODUCT(План!$D$5:$O$19*(План!$B$5:$B$19='008'!U$16)*('008'!$F2=План!$D$3:$O$3)) -> 0 | V2: =SUMPRODUCT(План!$D$5:$O$19*(План!$B$5:$B$19='008'!V$16)*('008'!$F2=План!$D$3:$O$3)) -> 0 | W2: =SUMPRODUCT(План!$D$5:$O$19*(План!$B$5:$B$19='008'!W$16)*('008'!$F2=План!$D$3:$O$3)) -> 0 | X2: =SUMPRODUCT(План!$D$5:$O$19*(План!$B$5:$B$19='008'!X$16)*('008'!$F2=План!$D$3:$O$3)) -> 0 | Y2: =SUMPRODUCT(План!$D$5:$O$19*(План!$B$5:$B$19='008'!Y$16)*('008'!$F2=План!$D$3:$O$3)) -> 0 | Z2: =SUMPRODUCT(План!$D$5:$O$19*(План!$B$5:$B$19='008'!Z$16)*('008'!$F2=План!$D$3:$O$3)) -> 0 | AA2: =SUMPRODUCT(План!$D$5:$O$19*(План!$B$5:$B$19='008'!AA$16)*('008'!$F2=План!$D$3:$O$3)) -> 0 | AB2: =SUMPRODUCT(План!$D$5:$O$19*(План!$B$5:$B$19='008'!AB$16)*('008'!$F2=План!$D$3:$O$3)) -> 0 | AC2: =SUMPRODUCT(План!$D$5:$O$19*(План!$B$5:$B$19='008'!AC$16)*('008'!$F2=План!$D$3:$O$3)) -> 0 | AD2: =SUMPRODUCT(План!$D$5:$O$19*(План!$B$5:$B$19='008'!AD$16)*('008'!$F2=План!$D$3:$O$3)) -> 0 | AE2: =SUMPRODUCT(План!$D$5:$O$19*(План!$B$5:$B$19='008'!AE$16)*('008'!$F2=План!$D$3:$O$3)) -> 0 | AF2: =SUMPRODUCT(План!$D$5:$O$19*(План!$B$5:$B$19='008'!AF$16)*('008'!$F2=План!$D$3:$O$3)) -> 0 | AG2: =SUMPRODUCT(План!$D$5:$O$19*(План!$B$5:$B$19='008'!AG$16)*('008'!$F2=План!$D$3:$O$3)) -> 0 | AH2: =SUMPRODUCT(План!$D$5:$O$19*(План!$B$5:$B$19='008'!AH$16)*('008'!$F2=План!$D$3:$O$3)) -> 0 | AI2: =SUMPRODUCT(План!$D$5:$O$19*(План!$B$5:$B$19='008'!AI$16)*('008'!$F2=План!$D$3:$O$3)) -> 0 | AJ2: =SUMPRODUCT(План!$D$5:$O$19*(План!$B$5:$B$19='008'!AJ$16)*('008'!$F2=План!$D$3:$O$3)) -> 0 | AK2: =SUMPRODUCT(План!$D$5:$O$19*(План!$B$5:$B$19='008'!AK$16)*('008'!$F2=План!$D$3:$O$3)) -> 0 | AL2: =SUMPRODUCT(План!$D$5:$O$19*(План!$B$5:$B$19='008'!AL$16)*('008'!$F2=План!$D$3:$O$3)) -> 0 | AM2: =SUMPRODUCT(План!$D$5:$O$19*(План!$B$5:$B$19='008'!AM$16)*('008'!$F2=План!$D$3:$O$3)) -> 0 | AN2: =SUMPRODUCT(План!$D$5:$O$19*(План!$B$5:$B$19='008'!AN$16)*('008'!$F2=План!$D$3:$O$3)) -> 0 | AO2: =SUMPRODUCT(План!$D$5:$O$19*(План!$B$5:$B$19='008'!AO$16)*('008'!$F2=План!$D$3:$O$3)) -> 0 | AP2: =SUMPRODUCT(План!$D$5:$O$19*(План!$B$5:$B$19='008'!AP$16)*('008'!$F2=План!$D$3:$O$3)) -> 0 | AQ2: =SUMPRODUCT(План!$D$5:$O$19*(План!$B$5:$B$19='008'!AQ$16)*('008'!$F2=План!$D$3:$O$3)) -> 0 | AR2: =SUMPRODUCT(План!$D$5:$O$19*(План!$B$5:$B$19='008'!AR$16)*('008'!$F2=План!$D$3:$O$3)) -> 0 | AS2: =SUMPRODUCT(План!$D$5:$O$19*(План!$B$5:$B$19='008'!AS$16)*('008'!$F2=План!$D$3:$O$3)) -> 0 | AT2: =SUMPRODUCT(План!$D$5:$O$19*(План!$B$5:$B$19='008'!AT$16)*('008'!$F2=План!$D$3:$O$3)) -> 0 | AU2: =SUMPRODUCT(План!$D$5:$O$19*(План!$B$5:$B$19='008'!AU$16)*('008'!$F2=План!$D$3:$O$3)) -> 0 | AV2: =SUMPRODUCT(План!$D$5:$O$19*(План!$B$5:$B$19='008'!AV$16)*('008'!$F2=План!$D$3:$O$3)) -> 0 | AW2: =SUMPRODUCT(План!$D$5:$O$19*(План!$B$5:$B$19='008'!AW$16)*('008'!$F2=План!$D$3:$O$3)) -> 0 | AX2: =SUMPRODUCT(План!$D$5:$O$19*(План!$B$5:$B$19='008'!AX$16)*('008'!$F2=План!$D$3:$O$3)) -> 0 | AY2: =SUMPRODUCT(План!$D$5:$O$19*(План!$B$5:$B$19='008'!AY$16)*('008'!$F2=План!$D$3:$O$3)) -> 0 | AZ2: =SUMPRODUCT(План!$D$5:$O$19*(План!$B$5:$B$19='008'!AZ$16)*('008'!$F2=План!$D$3:$O$3)) -> 0
F3: Февраль | G3: =SUMPRODUCT(План!$D$5:$O$19*(План!$B$5:$B$19='008'!G$16)*('008'!$F3=План!$D$3:$O$3)) -> 0 | H3: =SUMPRODUCT(План!$D$5:$O$19*(План!$B$5:$B$19='008'!H$16)*('008'!$F3=План!$D$3:$O$3)) -> 0 | I3: =SUMPRODUCT(План!$D$5:$O$19*(План!$B$5:$B$19='008'!I$16)*('008'!$F3=План!$D$3:$O$3)) -> 0 | J3: =SUMPRODUCT(План!$D$5:$O$19*(План!$B$5:$B$19='008'!J$16)*('008'!$F3=План!$D$3:$O$3)) -> 0 | K3: =SUMPRODUCT(План!$D$5:$O$19*(План!$B$5:$B$19='008'!K$16)*('008'!$F3=План!$D$3:$O$3)) -> 0 | L3: =SUMPRODUCT(План!$D$5:$O$19*(План!$B$5:$B$19='008'!L$16)*('008'!$F3=План!$D$3:$O$3)) -> 0 | M3: =SUMPRODUCT(План!$D$5:$O$19*(План!$B$5:$B$19='008'!M$16)*('008'!$F3=План!$D$3:$O$3)) -> 0 | N3: =SUMPRODUCT(План!$D$5:$O$19*(План!$B$5:$B$19='008'!N$16)*('008'!$F3=План!$D$3:$O$3)) -> 0 | O3: =SUMPRODUCT(План!$D$5:$O$19*(План!$B$5:$B$19='008'!O$16)*('008'!$F3=План!$D$3:$O$3)) -> 0 | P3: =SUMPRODUCT(План!$D$5:$O$19*(План!$B$5:$B$19='008'!P$16)*('008'!$F3=План!$D$3:$O$3)) -> 0 | Q3: =SUMPRODUCT(План!$D$5:$O$19*(План!$B$5:$B$19='008'!Q$16)*('008'!$F3=План!$D$3:$O$3)) -> 0 | R3: =SUMPRODUCT(План!$D$5:$O$19*(План!$B$5:$B$19='008'!R$16)*('008'!$F3=План!$D$3:$O$3)) -> 0 | S3: =SUMPRODUCT(План!$D$5:$O$19*(План!$B$5:$B$19='008'!S$16)*('008'!$F3=План!$D$3:$O$3)) -> 0 | T3: =SUMPRODUCT(План!$D$5:$O$19*(План!$B$5:$B$19='008'!T$16)*('008'!$F3=План!$D$3:$O$3)) -> 0 | U3: =SUMPRODUCT(План!$D$5:$O$19*(План!$B$5:$B$19='008'!U$16)*('008'!$F3=План!$D$3:$O$3)) -> 0 | V3: =SUMPRODUCT(План!$D$5:$O$19*(План!$B$5:$B$19='008'!V$16)*('008'!$F3=План!$D$3:$O$3)) -> 0 | W3: =SUMPRODUCT(План!$D$5:$O$19*(План!$B$5:$B$19='008'!W$16)*('008'!$F3=План!$D$3:$O$3)) -> 0 | X3: =SUMPRODUCT(План!$D$5:$O$19*(План!$B$5:$B$19='008'!X$16)*('008'!$F3=План!$D$3:$O$3)) -> 0 | Y3: =SUMPRODUCT(План!$D$5:$O$19*(План!$B$5:$B$19='008'!Y$16)*('008'!$F3=План!$D$3:$O$3)) -> 0 | Z3: =SUMPRODUCT(План!$D$5:$O$19*(План!$B$5:$B$19='008'!Z$16)*('008'!$F3=План!$D$3:$O$3)) -> 0 | AA3: =SUMPRODUCT(План!$D$5:$O$19*(План!$B$5:$B$19='008'!AA$16)*('008'!$F3=План!$D$3:$O$3)) -> 0 | AB3: =SUMPRODUCT(План!$D$5:$O$19*(План!$B$5:$B$19='008'!AB$16)*('008'!$F3=План!$D$3:$O$3)) -> 0 | AC3: =SUMPRODUCT(План!$D$5:$O$19*(План!$B$5:$B$19='008'!AC$16)*('008'!$F3=План!$D$3:$O$3)) -> 0 | AD3: =SUMPRODUCT(План!$D$5:$O$19*(План!$B$5:$B$19='008'!AD$16)*('008'!$F3=План!$D$3:$O$3)) -> 0 | AE3: =SUMPRODUCT(План!$D$5:$O$19*(План!$B$5:$B$19='008'!AE$16)*('008'!$F3=План!$D$3:$O$3)) -> 0 | AF3: =SUMPRODUCT(План!$D$5:$O$19*(План!$B$5:$B$19='008'!AF$16)*('008'!$F3=План!$D$3:$O$3)) -> 0 | AG3: =SUMPRODUCT(План!$D$5:$O$19*(План!$B$5:$B$19='008'!AG$16)*('008'!$F3=План!$D$3:$O$3)) -> 0 | AH3: =SUMPRODUCT(План!$D$5:$O$19*(План!$B$5:$B$19='008'!AH$16)*('008'!$F3=План!$D$3:$O$3)) -> 0 | AI3: =SUMPRODUCT(План!$D$5:$O$19*(План!$B$5:$B$19='008'!AI$16)*('008'!$F3=План!$D$3:$O$3)) -> 0 | AJ3: =SUMPRODUCT(План!$D$5:$O$19*(План!$B$5:$B$19='008'!AJ$16)*('008'!$F3=План!$D$3:$O$3)) -> 0 | AK3: =SUMPRODUCT(План!$D$5:$O$19*(План!$B$5:$B$19='008'!AK$16)*('008'!$F3=План!$D$3:$O$3)) -> 0 | AL3: =SUMPRODUCT(План!$D$5:$O$19*(План!$B$5:$B$19='008'!AL$16)*('008'!$F3=План!$D$3:$O$3)) -> 0 | AM3: =SUMPRODUCT(План!$D$5:$O$19*(План!$B$5:$B$19='008'!AM$16)*('008'!$F3=План!$D$3:$O$3)) -> 0 | AN3: =SUMPRODUCT(План!$D$5:$O$19*(План!$B$5:$B$19='008'!AN$16)*('008'!$F3=План!$D$3:$O$3)) -> 0 | AO3: =SUMPRODUCT(План!$D$5:$O$19*(План!$B$5:$B$19='008'!AO$16)*('008'!$F3=План!$D$3:$O$3)) -> 0 | AP3: =SUMPRODUCT(План!$D$5:$O$19*(План!$B$5:$B$19='008'!AP$16)*('008'!$F3=План!$D$3:$O$3)) -> 0 | AQ3: =SUMPRODUCT(План!$D$5:$O$19*(План!$B$5:$B$19='008'!AQ$16)*('008'!$F3=План!$D$3:$O$3)) -> 0 | AR3: =SUMPRODUCT(План!$D$5:$O$19*(План!$B$5:$B$19='008'!AR$16)*('008'!$F3=План!$D$3:$O$3)) -> 0 | AS3: =SUMPRODUCT(План!$D$5:$O$19*(План!$B$5:$B$19='008'!AS$16)*('008'!$F3=План!$D$3:$O$3)) -> 0 | AT3: =SUMPRODUCT(План!$D$5:$O$19*(План!$B$5:$B$19='008'!AT$16)*('008'!$F3=План!$D$3:$O$3)) -> 0 | AU3: =SUMPRODUCT(План!$D$5:$O$19*(План!$B$5:$B$19='008'!AU$16)*('008'!$F3=План!$D$3:$O$3)) -> 0 | AV3: =SUMPRODUCT(План!$D$5:$O$19*(План!$B$5:$B$19='008'!AV$16)*('008'!$F3=План!$D$3:$O$3)) -> 0 | AW3: =SUMPRODUCT(План!$D$5:$O$19*(План!$B$5:$B$19='008'!AW$16)*('008'!$F3=План!$D$3:$O$3)) -> 0 | AX3: =SUMPRODUCT(План!$D$5:$O$19*(План!$B$5:$B$19='008'!AX$16)*('008'!$F3=План!$D$3:$O$3)) -> 0 | AY3: =SUMPRODUCT(План!$D$5:$O$19*(План!$B$5:$B$19='008'!AY$16)*('008'!$F3=План!$D$3:$O$3)) -> 0 | AZ3: =SUMPRODUCT(План!$D$5:$O$19*(План!$B$5:$B$19='008'!AZ$16)*('008'!$F3=План!$D$3:$O$3)) -> 0
F4: Март | G4: =SUMPRODUCT(План!$D$5:$O$19*(План!$B$5:$B$19='008'!G$16)*('008'!$F4=План!$D$3:$O$3)) -> 0 | H4: =SUMPRODUCT(План!$D$5:$O$19*(План!$B$5:$B$19='008'!H$16)*('008'!$F4=План!$D$3:$O$3)) -> 0 | I4: =SUMPRODUCT(План!$D$5:$O$19*(План!$B$5:$B$19='008'!I$16)*('008'!$F4=План!$D$3:$O$3)) -> 0 | J4: =SUMPRODUCT(План!$D$5:$O$19*(План!$B$5:$B$19='008'!J$16)*('008'!$F4=План!$D$3:$O$3)) -> 0 | K4: =SUMPRODUCT(План!$D$5:$O$19*(План!$B$5:$B$19='008'!K$16)*('008'!$F4=План!$D$3:$O$3)) -> 0 | L4: =SUMPRODUCT(План!$D$5:$O$19*(План!$B$5:$B$19='008'!L$16)*('008'!$F4=План!$D$3:$O$3)) -> 0 | M4: =SUMPRODUCT(План!$D$5:$O$19*(План!$B$5:$B$19='008'!M$16)*('008'!$F4=План!$D$3:$O$3)) -> 0 | N4: =SUMPRODUCT(План!$D$5:$O$19*(План!$B$5:$B$19='008'!N$16)*('008'!$F4=План!$D$3:$O$3)) -> 0 | O4: =SUMPRODUCT(План!$D$5:$O$19*(План!$B$5:$B$19='008'!O$16)*('008'!$F4=План!$D$3:$O$3)) -> 0 | P4: =SUMPRODUCT(План!$D$5:$O$19*(План!$B$5:$B$19='008'!P$16)*('008'!$F4=План!$D$3:$O$3)) -> 0 | Q4: =SUMPRODUCT(План!$D$5:$O$19*(План!$B$5:$B$19='008'!Q$16)*('008'!$F4=План!$D$3:$O$3)) -> 0 | R4: =SUMPRODUCT(План!$D$5:$O$19*(План!$B$5:$B$19='008'!R$16)*('008'!$F4=План!$D$3:$O$3)) -> 0 | S4: =SUMPRODUCT(План!$D$5:$O$19*(План!$B$5:$B$19='008'!S$16)*('008'!$F4=План!$D$3:$O$3)) -> 0 | T4: =SUMPRODUCT(План!$D$5:$O$19*(План!$B$5:$B$19='008'!T$16)*('008'!$F4=План!$D$3:$O$3)) -> 0 | U4: =SUMPRODUCT(План!$D$5:$O$19*(План!$B$5:$B$19='008'!U$16)*('008'!$F4=План!$D$3:$O$3)) -> 0 | V4: =SUMPRODUCT(План!$D$5:$O$19*(План!$B$5:$B$19='008'!V$16)*('008'!$F4=План!$D$3:$O$3)) -> 0 | W4: =SUMPRODUCT(План!$D$5:$O$19*(План!$B$5:$B$19='008'!W$16)*('008'!$F4=План!$D$3:$O$3)) -> 0 | X4: =SUMPRODUCT(План!$D$5:$O$19*(План!$B$5:$B$19='008'!X$16)*('008'!$F4=План!$D$3:$O$3)) -> 0 | Y4: =SUMPRODUCT(План!$D$5:$O$19*(План!$B$5:$B$19='008'!Y$16)*('008'!$F4=План!$D$3:$O$3)) -> 0 | Z4: =SUMPRODUCT(План!$D$5:$O$19*(План!$B$5:$B$19='008'!Z$16)*('008'!$F4=План!$D$3:$O$3)) -> 0 | AA4: =SUMPRODUCT(План!$D$5:$O$19*(План!$B$5:$B$19='008'!AA$16)*('008'!$F4=План!$D$3:$O$3)) -> 0 | AB4: =SUMPRODUCT(План!$D$5:$O$19*(План!$B$5:$B$19='008'!AB$16)*('008'!$F4=План!$D$3:$O$3)) -> 0 | AC4: =SUMPRODUCT(План!$D$5:$O$19*(План!$B$5:$B$19='008'!AC$16)*('008'!$F4=План!$D$3:$O$3)) -> 0 | AD4: =SUMPRODUCT(План!$D$5:$O$19*(План!$B$5:$B$19='008'!AD$16)*('008'!$F4=План!$D$3:$O$3)) -> 0 | AE4: =SUMPRODUCT(План!$D$5:$O$19*(План!$B$5:$B$19='008'!AE$16)*('008'!$F4=План!$D$3:$O$3)) -> 0 | AF4: =SUMPRODUCT(План!$D$5:$O$19*(План!$B$5:$B$19='008'!AF$16)*('008'!$F4=План!$D$3:$O$3)) -> 0 | AG4: =SUMPRODUCT(План!$D$5:$O$19*(План!$B$5:$B$19='008'!AG$16)*('008'!$F4=План!$D$3:$O$3)) -> 0 | AH4: =SUMPRODUCT(План!$D$5:$O$19*(План!$B$5:$B$19='008'!AH$16)*('008'!$F4=План!$D$3:$O$3)) -> 0 | AI4: =SUMPRODUCT(План!$D$5:$O$19*(План!$B$5:$B$19='008'!AI$16)*('008'!$F4=План!$D$3:$O$3)) -> 0 | AJ4: =SUMPRODUCT(План!$D$5:$O$19*(План!$B$5:$B$19='008'!AJ$16)*('008'!$F4=План!$D$3:$O$3)) -> 0 | AK4: =SUMPRODUCT(План!$D$5:$O$19*(План!$B$5:$B$19='008'!AK$16)*('008'!$F4=План!$D$3:$O$3)) -> 0 | AL4: =SUMPRODUCT(План!$D$5:$O$19*(План!$B$5:$B$19='008'!AL$16)*('008'!$F4=План!$D$3:$O$3)) -> 0 | AM4: =SUMPRODUCT(План!$D$5:$O$19*(План!$B$5:$B$19='008'!AM$16)*('008'!$F4=План!$D$3:$O$3)) -> 0 | AN4: =SUMPRODUCT(План!$D$5:$O$19*(План!$B$5:$B$19='008'!AN$16)*('008'!$F4=План!$D$3:$O$3)) -> 0 | AO4: =SUMPRODUCT(План!$D$5:$O$19*(План!$B$5:$B$19='008'!AO$16)*('008'!$F4=План!$D$3:$O$3)) -> 0 | AP4: =SUMPRODUCT(План!$D$5:$O$19*(План!$B$5:$B$19='008'!AP$16)*('008'!$F4=План!$D$3:$O$3)) -> 0 | AQ4: =SUMPRODUCT(План!$D$5:$O$19*(План!$B$5:$B$19='008'!AQ$16)*('008'!$F4=План!$D$3:$O$3)) -> 0 | AR4: =SUMPRODUCT(План!$D$5:$O$19*(План!$B$5:$B$19='008'!AR$16)*('008'!$F4=План!$D$3:$O$3)) -> 0 | AS4: =SUMPRODUCT(План!$D$5:$O$19*(План!$B$5:$B$19='008'!AS$16)*('008'!$F4=План!$D$3:$O$3)) -> 0 | AT4: =SUMPRODUCT(План!$D$5:$O$19*(План!$B$5:$B$19='008'!AT$16)*('008'!$F4=План!$D$3:$O$3)) -> 0 | AU4: =SUMPRODUCT(План!$D$5:$O$19*(План!$B$5:$B$19='008'!AU$16)*('008'!$F4=План!$D$3:$O$3)) -> 0 | AV4: =SUMPRODUCT(План!$D$5:$O$19*(План!$B$5:$B$19='008'!AV$16)*('008'!$F4=План!$D$3:$O$3)) -> 0 | AW4: =SUMPRODUCT(План!$D$5:$O$19*(План!$B$5:$B$19='008'!AW$16)*('008'!$F4=План!$D$3:$O$3)) -> 0 | AX4: =SUMPRODUCT(План!$D$5:$O$19*(План!$B$5:$B$19='008'!AX$16)*('008'!$F4=План!$D$3:$O$3)) -> 0 | AY4: =SUMPRODUCT(План!$D$5:$O$19*(План!$B$5:$B$19='008'!AY$16)*('008'!$F4=План!$D$3:$O$3)) -> 0 | AZ4: =SUMPRODUCT(План!$D$5:$O$19*(План!$B$5:$B$19='008'!AZ$16)*('008'!$F4=План!$D$3:$O$3)) -> 0
F5: Апрель | G5: =SUMPRODUCT(План!$D$5:$O$19*(План!$B$5:$B$19='008'!G$16)*('008'!$F5=План!$D$3:$O$3)) -> 0 | H5: =SUMPRODUCT(План!$D$5:$O$19*(План!$B$5:$B$19='008'!H$16)*('008'!$F5=План!$D$3:$O$3)) -> 0 | I5: =SUMPRODUCT(План!$D$5:$O$19*(План!$B$5:$B$19='008'!I$16)*('008'!$F5=План!$D$3:$O$3)) -> 0 | J5: =SUMPRODUCT(План!$D$5:$O$19*(План!$B$5:$B$19='008'!J$16)*('008'!$F5=План!$D$3:$O$3)) -> 0 | K5: =SUMPRODUCT(План!$D$5:$O$19*(План!$B$5:$B$19='008'!K$16)*('008'!$F5=План!$D$3:$O$3)) -> 0 | L5: =SUMPRODUCT(План!$D$5:$O$19*(План!$B$5:$B$19='008'!L$16)*('008'!$F5=План!$D$3:$O$3)) -> 0 | M5: =SUMPRODUCT(План!$D$5:$O$19*(План!$B$5:$B$19='008'!M$16)*('008'!$F5=План!$D$3:$O$3)) -> 0 | N5: =SUMPRODUCT(План!$D$5:$O$19*(План!$B$5:$B$19='008'!N$16)*('008'!$F5=План!$D$3:$O$3)) -> 0 | O5: =SUMPRODUCT(План!$D$5:$O$19*(План!$B$5:$B$19='008'!O$16)*('008'!$F5=План!$D$3:$O$3)) -> 0 | P5: 500 | Q5: =SUMPRODUCT(План!$D$5:$O$19*(План!$B$5:$B$19='008'!Q$16)*('008'!$F5=План!$D$3:$O$3)) -> 0 | R5: =SUMPRODUCT(План!$D$5:$O$19*(План!$B$5:$B$19='008'!R$16)*('008'!$F5=План!$D$3:$O$3)) -> 0 | S5: =SUMPRODUCT(План!$D$5:$O$19*(План!$B$5:$B$19='008'!S$16)*('008'!$F5=План!$D$3:$O$3)) -> 0 | T5: =SUMPRODUCT(План!$D$5:$O$19*(План!$B$5:$B$19='008'!T$16)*('008'!$F5=План!$D$3:$O$3)) -> 0 | U5: =SUMPRODUCT(План!$D$5:$O$19*(План!$B$5:$B$19='008'!U$16)*('008'!$F5=План!$D$3:$O$3)) -> 0 | V5: =SUMPRODUCT(План!$D$5:$O$19*(План!$B$5:$B$19='008'!V$16)*('008'!$F5=План!$D$3:$O$3)) -> 0 | W5: =SUMPRODUCT(План!$D$5:$O$19*(План!$B$5:$B$19='008'!W$16)*('008'!$F5=План!$D$3:$O$3)) -> 0 | X5: =SUMPRODUCT(План!$D$5:$O$19*(План!$B$5:$B$19='008'!X$16)*('008'!$F5=План!$D$3:$O$3)) -> 0 | Y5: =SUMPRODUCT(План!$D$5:$O$19*(План!$B$5:$B$19='008'!Y$16)*('008'!$F5=План!$D$3:$O$3)) -> 0 | Z5: =SUMPRODUCT(План!$D$5:$O$19*(План!$B$5:$B$19='008'!Z$16)*('008'!$F5=План!$D$3:$O$3)) -> 0 | AA5: =SUMPRODUCT(План!$D$5:$O$19*(План!$B$5:$B$19='008'!AA$16)*('008'!$F5=План!$D$3:$O$3)) -> 0 | AB5: =SUMPRODUCT(План!$D$5:$O$19*(План!$B$5:$B$19='008'!AB$16)*('008'!$F5=План!$D$3:$O$3)) -> 0 | AC5: =SUMPRODUCT(План!$D$5:$O$19*(План!$B$5:$B$19='008'!AC$16)*('008'!$F5=План!$D$3:$O$3)) -> 0 | AD5: =SUMPRODUCT(План!$D$5:$O$19*(План!$B$5:$B$19='008'!AD$16)*('008'!$F5=План!$D$3:$O$3)) -> 0 | AE5: =SUMPRODUCT(План!$D$5:$O$19*(План!$B$5:$B$19='008'!AE$16)*('008'!$F5=План!$D$3:$O$3)) -> 0 | AF5: =SUMPRODUCT(План!$D$5:$O$19*(План!$B$5:$B$19='008'!AF$16)*('008'!$F5=План!$D$3:$O$3)) -> 0 | AG5: =SUMPRODUCT(План!$D$5:$O$19*(План!$B$5:$B$19='008'!AG$16)*('008'!$F5=План!$D$3:$O$3)) -> 0 | AH5: =SUMPRODUCT(План!$D$5:$O$19*(План!$B$5:$B$19='008'!AH$16)*('008'!$F5=План!$D$3:$O$3)) -> 0 | AI5: =SUMPRODUCT(План!$D$5:$O$19*(План!$B$5:$B$19='008'!AI$16)*('008'!$F5=План!$D$3:$O$3)) -> 0 | AJ5: =SUMPRODUCT(План!$D$5:$O$19*(План!$B$5:$B$19='008'!AJ$16)*('008'!$F5=План!$D$3:$O$3)) -> 0 | AK5: =SUMPRODUCT(План!$D$5:$O$19*(План!$B$5:$B$19='008'!AK$16)*('008'!$F5=План!$D$3:$O$3)) -> 0 | AL5: =SUMPRODUCT(План!$D$5:$O$19*(План!$B$5:$B$19='008'!AL$16)*('008'!$F5=План!$D$3:$O$3)) -> 0 | AM5: =SUMPRODUCT(План!$D$5:$O$19*(План!$B$5:$B$19='008'!AM$16)*('008'!$F5=План!$D$3:$O$3)) -> 0 | AN5: =SUMPRODUCT(План!$D$5:$O$19*(План!$B$5:$B$19='008'!AN$16)*('008'!$F5=План!$D$3:$O$3)) -> 0 | AO5: =SUMPRODUCT(План!$D$5:$O$19*(План!$B$5:$B$19='008'!AO$16)*('008'!$F5=План!$D$3:$O$3)) -> 0 | AP5: =SUMPRODUCT(План!$D$5:$O$19*(План!$B$5:$B$19='008'!AP$16)*('008'!$F5=План!$D$3:$O$3)) -> 0 | AQ5: =SUMPRODUCT(План!$D$5:$O$19*(План!$B$5:$B$19='008'!AQ$16)*('008'!$F5=План!$D$3:$O$3)) -> 0 | AR5: =SUMPRODUCT(План!$D$5:$O$19*(План!$B$5:$B$19='008'!AR$16)*('008'!$F5=План!$D$3:$O$3)) -> 0 | AS5: =SUMPRODUCT(План!$D$5:$O$19*(План!$B$5:$B$19='008'!AS$16)*('008'!$F5=План!$D$3:$O$3)) -> 0 | AT5: =SUMPRODUCT(План!$D$5:$O$19*(План!$B$5:$B$19='008'!AT$16)*('008'!$F5=План!$D$3:$O$3)) -> 0 | AU5: =SUMPRODUCT(План!$D$5:$O$19*(План!$B$5:$B$19='008'!AU$16)*('008'!$F5=План!$D$3:$O$3)) -> 0 | AV5: =SUMPRODUCT(План!$D$5:$O$19*(План!$B$5:$B$19='008'!AV$16)*('008'!$F5=План!$D$3:$O$3)) -> 0 | AW5: =SUMPRODUCT(План!$D$5:$O$19*(План!$B$5:$B$19='008'!AW$16)*('008'!$F5=План!$D$3:$O$3)) -> 0 | AX5: =SUMPRODUCT(План!$D$5:$O$19*(План!$B$5:$B$19='008'!AX$16)*('008'!$F5=План!$D$3:$O$3)) -> 0 | AY5: =SUMPRODUCT(План!$D$5:$O$19*(План!$B$5:$B$19='008'!AY$16)*('008'!$F5=План!$D$3:$O$3)) -> 0 | AZ5: =SUMPRODUCT(План!$D$5:$O$19*(План!$B$5:$B$19='008'!AZ$16)*('008'!$F5=План!$D$3:$O$3)) -> 0
F6: Май | G6: =SUMPRODUCT(План!$D$5:$O$19*(План!$B$5:$B$19='008'!G$16)*('008'!$F6=План!$D$3:$O$3)) -> 0 | H6: =SUMPRODUCT(План!$D$5:$O$19*(План!$B$5:$B$19='008'!H$16)*('008'!$F6=План!$D$3:$O$3)) -> 0 | I6: 100 | J6: =SUMPRODUCT(План!$D$5:$O$19*(План!$B$5:$B$19='008'!J$16)*('008'!$F6=План!$D$3:$O$3)) -> 0 | K6: =SUMPRODUCT(План!$D$5:$O$19*(План!$B$5:$B$19='008'!K$16)*('008'!$F6=План!$D$3:$O$3)) -> 0 | L6: 200 | M6: =SUMPRODUCT(План!$D$5:$O$19*(План!$B$5:$B$19='008'!M$16)*('008'!$F6=План!$D$3:$O$3)) -> 0 | N6: =SUMPRODUCT(План!$D$5:$O$19*(План!$B$5:$B$19='008'!N$16)*('008'!$F6=План!$D$3:$O$3)) -> 0 | O6: 300 | P6: =SUMPRODUCT(План!$D$5:$O$19*(План!$B$5:$B$19='008'!P$16)*('008'!$F6=План!$D$3:$O$3)) -> 0 | Q6: =SUMPRODUCT(План!$D$5:$O$19*(План!$B$5:$B$19='008'!Q$16)*('008'!$F6=План!$D$3:$O$3)) -> 0 | R6: =SUMPRODUCT(План!$D$5:$O$19*(План!$B$5:$B$19='008'!R$16)*('008'!$F6=План!$D$3:$O$3)) -> 0 | S6: =SUMPRODUCT(План!$D$5:$O$19*(План!$B$5:$B$19='008'!S$16)*('008'!$F6=План!$D$3:$O$3)) -> 0 | T6: =SUMPRODUCT(План!$D$5:$O$19*(План!$B$5:$B$19='008'!T$16)*('008'!$F6=План!$D$3:$O$3)) -> 0 | U6: =SUMPRODUCT(План!$D$5:$O$19*(План!$B$5:$B$19='008'!U$16)*('008'!$F6=План!$D$3:$O$3)) -> 0 | V6: =SUMPRODUCT(План!$D$5:$O$19*(План!$B$5:$B$19='008'!V$16)*('008'!$F6=План!$D$3:$O$3)) -> 0 | W6: =SUMPRODUCT(План!$D$5:$O$19*(План!$B$5:$B$19='008'!W$16)*('008'!$F6=План!$D$3:$O$3)) -> 0 | X6: =SUMPRODUCT(План!$D$5:$O$19*(План!$B$5:$B$19='008'!X$16)*('008'!$F6=План!$D$3:$O$3)) -> 0 | Y6: =SUMPRODUCT(План!$D$5:$O$19*(План!$B$5:$B$19='008'!Y$16)*('008'!$F6=План!$D$3:$O$3)) -> 0 | Z6: =SUMPRODUCT(План!$D$5:$O$19*(План!$B$5:$B$19='008'!Z$16)*('008'!$F6=План!$D$3:$O$3)) -> 0 | AA6: =SUMPRODUCT(План!$D$5:$O$19*(План!$B$5:$B$19='008'!AA$16)*('008'!$F6=План!$D$3:$O$3)) -> 0 | AB6: =SUMPRODUCT(План!$D$5:$O$19*(План!$B$5:$B$19='008'!AB$16)*('008'!$F6=План!$D$3:$O$3)) -> 0 | AC6: =SUMPRODUCT(План!$D$5:$O$19*(План!$B$5:$B$19='008'!AC$16)*('008'!$F6=План!$D$3:$O$3)) -> 0 | AD6: =SUMPRODUCT(План!$D$5:$O$19*(План!$B$5:$B$19='008'!AD$16)*('008'!$F6=План!$D$3:$O$3)) -> 0 | AE6: =SUMPRODUCT(План!$D$5:$O$19*(План!$B$5:$B$19='008'!AE$16)*('008'!$F6=План!$D$3:$O$3)) -> 0 | AF6: =SUMPRODUCT(План!$D$5:$O$19*(План!$B$5:$B$19='008'!AF$16)*('008'!$F6=План!$D$3:$O$3)) -> 0 | AG6: =SUMPRODUCT(План!$D$5:$O$19*(План!$B$5:$B$19='008'!AG$16)*('008'!$F6=План!$D$3:$O$3)) -> 0 | AH6: =SUMPRODUCT(План!$D$5:$O$19*(План!$B$5:$B$19='008'!AH$16)*('008'!$F6=План!$D$3:$O$3)) -> 0 | AI6: =SUMPRODUCT(План!$D$5:$O$19*(План!$B$5:$B$19='008'!AI$16)*('008'!$F6=План!$D$3:$O$3)) -> 0 | AJ6: =SUMPRODUCT(План!$D$5:$O$19*(План!$B$5:$B$19='008'!AJ$16)*('008'!$F6=План!$D$3:$O$3)) -> 0 | AK6: =SUMPRODUCT(План!$D$5:$O$19*(План!$B$5:$B$19='008'!AK$16)*('008'!$F6=План!$D$3:$O$3)) -> 0 | AL6: =SUMPRODUCT(План!$D$5:$O$19*(План!$B$5:$B$19='008'!AL$16)*('008'!$F6=План!$D$3:$O$3)) -> 0 | AM6: =SUMPRODUCT(План!$D$5:$O$19*(План!$B$5:$B$19='008'!AM$16)*('008'!$F6=План!$D$3:$O$3)) -> 0 | AN6: =SUMPRODUCT(План!$D$5:$O$19*(План!$B$5:$B$19='008'!AN$16)*('008'!$F6=План!$D$3:$O$3)) -> 0 | AO6: =SUMPRODUCT(План!$D$5:$O$19*(План!$B$5:$B$19='008'!AO$16)*('008'!$F6=План!$D$3:$O$3)) -> 0 | AP6: =SUMPRODUCT(План!$D$5:$O$19*(План!$B$5:$B$19='008'!AP$16)*('008'!$F6=План!$D$3:$O$3)) -> 0 | AQ6: =SUMPRODUCT(План!$D$5:$O$19*(План!$B$5:$B$19='008'!AQ$16)*('008'!$F6=План!$D$3:$O$3)) -> 0 | AR6: =SUMPRODUCT(План!$D$5:$O$19*(План!$B$5:$B$19='008'!AR$16)*('008'!$F6=План!$D$3:$O$3)) -> 0 | AS6: =SUMPRODUCT(План!$D$5:$O$19*(План!$B$5:$B$19='008'!AS$16)*('008'!$F6=План!$D$3:$O$3)) -> 0 | AT6: =SUMPRODUCT(План!$D$5:$O$19*(План!$B$5:$B$19='008'!AT$16)*('008'!$F6=План!$D$3:$O$3)) -> 0 | AU6: =SUMPRODUCT(План!$D$5:$O$19*(План!$B$5:$B$19='008'!AU$16)*('008'!$F6=План!$D$3:$O$3)) -> 0 | AV6: =SUMPRODUCT(План!$D$5:$O$19*(План!$B$5:$B$19='008'!AV$16)*('008'!$F6=План!$D$3:$O$3)) -> 0 | AW6: =SUMPRODUCT(План!$D$5:$O$19*(План!$B$5:$B$19='008'!AW$16)*('008'!$F6=План!$D$3:$O$3)) -> 0 | AX6: =SUMPRODUCT(План!$D$5:$O$19*(План!$B$5:$B$19='008'!AX$16)*('008'!$F6=План!$D$3:$O$3)) -> 0 | AY6: =SUMPRODUCT(План!$D$5:$O$19*(План!$B$5:$B$19='008'!AY$16)*('008'!$F6=План!$D$3:$O$3)) -> 0 | AZ6: =SUMPRODUCT(План!$D$5:$O$19*(План!$B$5:$B$19='008'!AZ$16)*('008'!$F6=План!$D$3:$O$3)) -> 0
F7: Июнь | G7: =SUMPRODUCT(План!$D$5:$O$19*(План!$B$5:$B$19='008'!G$16)*('008'!$F7=План!$D$3:$O$3)) -> 0 | H7: =SUMPRODUCT(План!$D$5:$O$19*(План!$B$5:$B$19='008'!H$16)*('008'!$F7=План!$D$3:$O$3)) -> 0 | I7: =SUMPRODUCT(План!$D$5:$O$19*(План!$B$5:$B$19='008'!I$16)*('008'!$F7=План!$D$3:$O$3)) -> 0 | J7: =SUMPRODUCT(План!$D$5:$O$19*(План!$B$5:$B$19='008'!J$16)*('008'!$F7=План!$D$3:$O$3)) -> 0 | K7: =SUMPRODUCT(План!$D$5:$O$19*(План!$B$5:$B$19='008'!K$16)*('008'!$F7=План!$D$3:$O$3)) -> 0 | L7: =SUMPRODUCT(План!$D$5:$O$19*(План!$B$5:$B$19='008'!L$16)*('008'!$F7=План!$D$3:$O$3)) -> 0 | M7: =SUMPRODUCT(План!$D$5:$O$19*(План!$B$5:$B$19='008'!M$16)*('008'!$F7=План!$D$3:$O$3)) -> 0 | N7: =SUMPRODUCT(План!$D$5:$O$19*(План!$B$5:$B$19='008'!N$16)*('008'!$F7=План!$D$3:$O$3)) -> 0 | O7: =SUMPRODUCT(План!$D$5:$O$19*(План!$B$5:$B$19='008'!O$16)*('008'!$F7=План!$D$3:$O$3)) -> 0 | P7: =SUMPRODUCT(План!$D$5:$O$19*(План!$B$5:$B$19='008'!P$16)*('008'!$F7=План!$D$3:$O$3)) -> 0 | Q7: =SUMPRODUCT(План!$D$5:$O$19*(План!$B$5:$B$19='008'!Q$16)*('008'!$F7=План!$D$3:$O$3)) -> 0 | R7: =SUMPRODUCT(План!$D$5:$O$19*(План!$B$5:$B$19='008'!R$16)*('008'!$F7=План!$D$3:$O$3)) -> 0 | S7: =SUMPRODUCT(План!$D$5:$O$19*(План!$B$5:$B$19='008'!S$16)*('008'!$F7=План!$D$3:$O$3)) -> 0 | T7: =SUMPRODUCT(План!$D$5:$O$19*(План!$B$5:$B$19='008'!T$16)*('008'!$F7=План!$D$3:$O$3)) -> 0 | U7: =SUMPRODUCT(План!$D$5:$O$19*(План!$B$5:$B$19='008'!U$16)*('008'!$F7=План!$D$3:$O$3)) -> 0 | V7: =SUMPRODUCT(План!$D$5:$O$19*(План!$B$5:$B$19='008'!V$16)*('008'!$F7=План!$D$3:$O$3)) -> 0 | W7: =SUMPRODUCT(План!$D$5:$O$19*(План!$B$5:$B$19='008'!W$16)*('008'!$F7=План!$D$3:$O$3)) -> 0 | X7: =SUMPRODUCT(План!$D$5:$O$19*(План!$B$5:$B$19='008'!X$16)*('008'!$F7=План!$D$3:$O$3)) -> 0 | Y7: =SUMPRODUCT(План!$D$5:$O$19*(План!$B$5:$B$19='008'!Y$16)*('008'!$F7=План!$D$3:$O$3)) -> 0 | Z7: =SUMPRODUCT(План!$D$5:$O$19*(План!$B$5:$B$19='008'!Z$16)*('008'!$F7=План!$D$3:$O$3)) -> 0 | AA7: =SUMPRODUCT(План!$D$5:$O$19*(План!$B$5:$B$19='008'!AA$16)*('008'!$F7=План!$D$3:$O$3)) -> 0 | AB7: =SUMPRODUCT(План!$D$5:$O$19*(План!$B$5:$B$19='008'!AB$16)*('008'!$F7=План!$D$3:$O$3)) -> 0 | AC7: =SUMPRODUCT(План!$D$5:$O$19*(План!$B$5:$B$19='008'!AC$16)*('008'!$F7=План!$D$3:$O$3)) -> 0 | AD7: =SUMPRODUCT(План!$D$5:$O$19*(План!$B$5:$B$19='008'!AD$16)*('008'!$F7=План!$D$3:$O$3)) -> 0 | AE7: =SUMPRODUCT(План!$D$5:$O$19*(План!$B$5:$B$19='008'!AE$16)*('008'!$F7=План!$D$3:$O$3)) -> 0 | AF7: =SUMPRODUCT(План!$D$5:$O$19*(План!$B$5:$B$19='008'!AF$16)*('008'!$F7=План!$D$3:$O$3)) -> 0 | AG7: =SUMPRODUCT(План!$D$5:$O$19*(План!$B$5:$B$19='008'!AG$16)*('008'!$F7=План!$D$3:$O$3)) -> 0 | AH7: =SUMPRODUCT(План!$D$5:$O$19*(План!$B$5:$B$19='008'!AH$16)*('008'!$F7=План!$D$3:$O$3)) -> 0 | AI7: =SUMPRODUCT(План!$D$5:$O$19*(План!$B$5:$B$19='008'!AI$16)*('008'!$F7=План!$D$3:$O$3)) -> 0 | AJ7: =SUMPRODUCT(План!$D$5:$O$19*(План!$B$5:$B$19='008'!AJ$16)*('008'!$F7=План!$D$3:$O$3)) -> 0 | AK7: =SUMPRODUCT(План!$D$5:$O$19*(План!$B$5:$B$19='008'!AK$16)*('008'!$F7=План!$D$3:$O$3)) -> 0 | AL7: =SUMPRODUCT(План!$D$5:$O$19*(План!$B$5:$B$19='008'!AL$16)*('008'!$F7=План!$D$3:$O$3)) -> 0 | AM7: =SUMPRODUCT(План!$D$5:$O$19*(План!$B$5:$B$19='008'!AM$16)*('008'!$F7=План!$D$3:$O$3)) -> 0 | AN7: =SUMPRODUCT(План!$D$5:$O$19*(План!$B$5:$B$19='008'!AN$16)*('008'!$F7=План!$D$3:$O$3)) -> 0 | AO7: =SUMPRODUCT(План!$D$5:$O$19*(План!$B$5:$B$19='008'!AO$16)*('008'!$F7=План!$D$3:$O$3)) -> 0 | AP7: =SUMPRODUCT(План!$D$5:$O$19*(План!$B$5:$B$19='008'!AP$16)*('008'!$F7=План!$D$3:$O$3)) -> 0 | AQ7: =SUMPRODUCT(План!$D$5:$O$19*(План!$B$5:$B$19='008'!AQ$16)*('008'!$F7=План!$D$3:$O$3)) -> 0 | AR7: =SUMPRODUCT(План!$D$5:$O$19*(План!$B$5:$B$19='008'!AR$16)*('008'!$F7=План!$D$3:$O$3)) -> 0 | AS7: =SUMPRODUCT(План!$D$5:$O$19*(План!$B$5:$B$19='008'!AS$16)*('008'!$F7=План!$D$3:$O$3)) -> 0 | AT7: =SUMPRODUCT(План!$D$5:$O$19*(План!$B$5:$B$19='008'!AT$16)*('008'!$F7=План!$D$3:$O$3)) -> 0 | AU7: =SUMPRODUCT(План!$D$5:$O$19*(План!$B$5:$B$19='008'!AU$16)*('008'!$F7=План!$D$3:$O$3)) -> 0 | AV7: =SUMPRODUCT(План!$D$5:$O$19*(План!$B$5:$B$19='008'!AV$16)*('008'!$F7=План!$D$3:$O$3)) -> 0 | AW7: =SUMPRODUCT(План!$D$5:$O$19*(План!$B$5:$B$19='008'!AW$16)*('008'!$F7=План!$D$3:$O$3)) -> 0 | AX7: =SUMPRODUCT(План!$D$5:$O$19*(План!$B$5:$B$19='008'!AX$16)*('008'!$F7=План!$D$3:$O$3)) -> 0 | AY7: =SUMPRODUCT(План!$D$5:$O$19*(План!$B$5:$B$19='008'!AY$16)*('008'!$F7=План!$D$3:$O$3)) -> 0 | AZ7: =SUMPRODUCT(План!$D$5:$O$19*(План!$B$5:$B$19='008'!AZ$16)*('008'!$F7=План!$D$3:$O$3)) -> 0
F8: Июль | G8: =SUMPRODUCT(План!$D$5:$O$19*(План!$B$5:$B$19='008'!G$16)*('008'!$F8=План!$D$3:$O$3)) -> 0 | H8: =SUMPRODUCT(План!$D$5:$O$19*(План!$B$5:$B$19='008'!H$16)*('008'!$F8=План!$D$3:$O$3)) -> 0 | I8: =SUMPRODUCT(План!$D$5:$O$19*(План!$B$5:$B$19='008'!I$16)*('008'!$F8=План!$D$3:$O$3)) -> 0 | J8: =SUMPRODUCT(План!$D$5:$O$19*(План!$B$5:$B$19='008'!J$16)*('008'!$F8=План!$D$3:$O$3)) -> 0 | K8: =SUMPRODUCT(План!$D$5:$O$19*(План!$B$5:$B$19='008'!K$16)*('008'!$F8=План!$D$3:$O$3)) -> 0 | L8: =SUMPRODUCT(План!$D$5:$O$19*(План!$B$5:$B$19='008'!L$16)*('008'!$F8=План!$D$3:$O$3)) -> 0 | M8: =SUMPRODUCT(План!$D$5:$O$19*(План!$B$5:$B$19='008'!M$16)*('008'!$F8=План!$D$3:$O$3)) -> 0 | N8: =SUMPRODUCT(План!$D$5:$O$19*(План!$B$5:$B$19='008'!N$16)*('008'!$F8=План!$D$3:$O$3)) -> 0 | O8: =SUMPRODUCT(План!$D$5:$O$19*(План!$B$5:$B$19='008'!O$16)*('008'!$F8=План!$D$3:$O$3)) -> 0 | P8: =SUMPRODUCT(План!$D$5:$O$19*(План!$B$5:$B$19='008'!P$16)*('008'!$F8=План!$D$3:$O$3)) -> 0 | Q8: =SUMPRODUCT(План!$D$5:$O$19*(План!$B$5:$B$19='008'!Q$16)*('008'!$F8=План!$D$3:$O$3)) -> 0 | R8: =SUMPRODUCT(План!$D$5:$O$19*(План!$B$5:$B$19='008'!R$16)*('008'!$F8=План!$D$3:$O$3)) -> 0 | S8: =SUMPRODUCT(План!$D$5:$O$19*(План!$B$5:$B$19='008'!S$16)*('008'!$F8=План!$D$3:$O$3)) -> 0 | T8: =SUMPRODUCT(План!$D$5:$O$19*(План!$B$5:$B$19='008'!T$16)*('008'!$F8=План!$D$3:$O$3)) -> 0 | U8: =SUMPRODUCT(План!$D$5:$O$19*(План!$B$5:$B$19='008'!U$16)*('008'!$F8=План!$D$3:$O$3)) -> 0 | V8: =SUMPRODUCT(План!$D$5:$O$19*(План!$B$5:$B$19='008'!V$16)*('008'!$F8=План!$D$3:$O$3)) -> 0 | W8: =SUMPRODUCT(План!$D$5:$O$19*(План!$B$5:$B$19='008'!W$16)*('008'!$F8=План!$D$3:$O$3)) -> 0 | X8: =SUMPRODUCT(План!$D$5:$O$19*(План!$B$5:$B$19='008'!X$16)*('008'!$F8=План!$D$3:$O$3)) -> 0 | Y8: =SUMPRODUCT(План!$D$5:$O$19*(План!$B$5:$B$19='008'!Y$16)*('008'!$F8=План!$D$3:$O$3)) -> 0 | Z8: =SUMPRODUCT(План!$D$5:$O$19*(План!$B$5:$B$19='008'!Z$16)*('008'!$F8=План!$D$3:$O$3)) -> 0 | AA8: =SUMPRODUCT(План!$D$5:$O$19*(План!$B$5:$B$19='008'!AA$16)*('008'!$F8=План!$D$3:$O$3)) -> 0 | AB8: =SUMPRODUCT(План!$D$5:$O$19*(План!$B$5:$B$19='008'!AB$16)*('008'!$F8=План!$D$3:$O$3)) -> 0 | AC8: =SUMPRODUCT(План!$D$5:$O$19*(План!$B$5:$B$19='008'!AC$16)*('008'!$F8=План!$D$3:$O$3)) -> 0 | AD8: =SUMPRODUCT(План!$D$5:$O$19*(План!$B$5:$B$19='008'!AD$16)*('008'!$F8=План!$D$3:$O$3)) -> 0 | AE8: =SUMPRODUCT(План!$D$5:$O$19*(План!$B$5:$B$19='008'!AE$16)*('008'!$F8=План!$D$3:$O$3)) -> 0 | AF8: =SUMPRODUCT(План!$D$5:$O$19*(План!$B$5:$B$19='008'!AF$16)*('008'!$F8=План!$D$3:$O$3)) -> 0 | AG8: =SUMPRODUCT(План!$D$5:$O$19*(План!$B$5:$B$19='008'!AG$16)*('008'!$F8=План!$D$3:$O$3)) -> 0 | AH8: =SUMPRODUCT(План!$D$5:$O$19*(План!$B$5:$B$19='008'!AH$16)*('008'!$F8=План!$D$3:$O$3)) -> 0 | AI8: =SUMPRODUCT(План!$D$5:$O$19*(План!$B$5:$B$19='008'!AI$16)*('008'!$F8=План!$D$3:$O$3)) -> 0 | AJ8: =SUMPRODUCT(План!$D$5:$O$19*(План!$B$5:$B$19='008'!AJ$16)*('008'!$F8=План!$D$3:$O$3)) -> 0 | AK8: =SUMPRODUCT(План!$D$5:$O$19*(План!$B$5:$B$19='008'!AK$16)*('008'!$F8=План!$D$3:$O$3)) -> 0 | AL8: =SUMPRODUCT(План!$D$5:$O$19*(План!$B$5:$B$19='008'!AL$16)*('008'!$F8=План!$D$3:$O$3)) -> 0 | AM8: =SUMPRODUCT(План!$D$5:$O$19*(План!$B$5:$B$19='008'!AM$16)*('008'!$F8=План!$D$3:$O$3)) -> 0 | AN8: =SUMPRODUCT(План!$D$5:$O$19*(План!$B$5:$B$19='008'!AN$16)*('008'!$F8=План!$D$3:$O$3)) -> 0 | AO8: =SUMPRODUCT(План!$D$5:$O$19*(План!$B$5:$B$19='008'!AO$16)*('008'!$F8=План!$D$3:$O$3)) -> 0 | AP8: =SUMPRODUCT(План!$D$5:$O$19*(План!$B$5:$B$19='008'!AP$16)*('008'!$F8=План!$D$3:$O$3)) -> 0 | AQ8: =SUMPRODUCT(План!$D$5:$O$19*(План!$B$5:$B$19='008'!AQ$16)*('008'!$F8=План!$D$3:$O$3)) -> 0 | AR8: =SUMPRODUCT(План!$D$5:$O$19*(План!$B$5:$B$19='008'!AR$16)*('008'!$F8=План!$D$3:$O$3)) -> 0 | AS8: =SUMPRODUCT(План!$D$5:$O$19*(План!$B$5:$B$19='008'!AS$16)*('008'!$F8=План!$D$3:$O$3)) -> 0 | AT8: =SUMPRODUCT(План!$D$5:$O$19*(План!$B$5:$B$19='008'!AT$16)*('008'!$F8=План!$D$3:$O$3)) -> 0 | AU8: =SUMPRODUCT(План!$D$5:$O$19*(План!$B$5:$B$19='008'!AU$16)*('008'!$F8=План!$D$3:$O$3)) -> 0 | AV8: =SUMPRODUCT(План!$D$5:$O$19*(План!$B$5:$B$19='008'!AV$16)*('008'!$F8=План!$D$3:$O$3)) -> 0 | AW8: =SUMPRODUCT(План!$D$5:$O$19*(План!$B$5:$B$19='008'!AW$16)*('008'!$F8=План!$D$3:$O$3)) -> 0 | AX8: =SUMPRODUCT(План!$D$5:$O$19*(План!$B$5:$B$19='008'!AX$16)*('008'!$F8=План!$D$3:$O$3)) -> 0 | AY8: =SUMPRODUCT(План!$D$5:$O$19*(План!$B$5:$B$19='008'!AY$16)*('008'!$F8=План!$D$3:$O$3)) -> 0 | AZ8: =SUMPRODUCT(План!$D$5:$O$19*(План!$B$5:$B$19='008'!AZ$16)*('008'!$F8=План!$D$3:$O$3)) -> 0
F9: Август | G9: =SUMPRODUCT(План!$D$5:$O$19*(План!$B$5:$B$19='008'!G$16)*('008'!$F9=План!$D$3:$O$3)) -> 0 | H9: =SUMPRODUCT(План!$D$5:$O$19*(План!$B$5:$B$19='008'!H$16)*('008'!$F9=План!$D$3:$O$3)) -> 0 | I9: =SUMPRODUCT(План!$D$5:$O$19*(План!$B$5:$B$19='008'!I$16)*('008'!$F9=План!$D$3:$O$3)) -> 0 | J9: =SUMPRODUCT(План!$D$5:$O$19*(План!$B$5:$B$19='008'!J$16)*('008'!$F9=План!$D$3:$O$3)) -> 0 | K9: =SUMPRODUCT(План!$D$5:$O$19*(План!$B$5:$B$19='008'!K$16)*('008'!$F9=План!$D$3:$O$3)) -> 0 | L9: =SUMPRODUCT(План!$D$5:$O$19*(План!$B$5:$B$19='008'!L$16)*('008'!$F9=План!$D$3:$O$3)) -> 0 | M9: =SUMPRODUCT(План!$D$5:$O$19*(План!$B$5:$B$19='008'!M$16)*('008'!$F9=План!$D$3:$O$3)) -> 0 | N9: =SUMPRODUCT(План!$D$5:$O$19*(План!$B$5:$B$19='008'!N$16)*('008'!$F9=План!$D$3:$O$3)) -> 0 | O9: =SUMPRODUCT(План!$D$5:$O$19*(План!$B$5:$B$19='008'!O$16)*('008'!$F9=План!$D$3:$O$3)) -> 0 | P9: =SUMPRODUCT(План!$D$5:$O$19*(План!$B$5:$B$19='008'!P$16)*('008'!$F9=План!$D$3:$O$3)) -> 0 | Q9: =SUMPRODUCT(План!$D$5:$O$19*(План!$B$5:$B$19='008'!Q$16)*('008'!$F9=План!$D$3:$O$3)) -> 0 | R9: =SUMPRODUCT(План!$D$5:$O$19*(План!$B$5:$B$19='008'!R$16)*('008'!$F9=План!$D$3:$O$3)) -> 0 | S9: =SUMPRODUCT(План!$D$5:$O$19*(План!$B$5:$B$19='008'!S$16)*('008'!$F9=План!$D$3:$O$3)) -> 0 | T9: =SUMPRODUCT(План!$D$5:$O$19*(План!$B$5:$B$19='008'!T$16)*('008'!$F9=План!$D$3:$O$3)) -> 0 | U9: =SUMPRODUCT(План!$D$5:$O$19*(План!$B$5:$B$19='008'!U$16)*('008'!$F9=План!$D$3:$O$3)) -> 0 | V9: =SUMPRODUCT(План!$D$5:$O$19*(План!$B$5:$B$19='008'!V$16)*('008'!$F9=План!$D$3:$O$3)) -> 0 | W9: =SUMPRODUCT(План!$D$5:$O$19*(План!$B$5:$B$19='008'!W$16)*('008'!$F9=План!$D$3:$O$3)) -> 0 | X9: =SUMPRODUCT(План!$D$5:$O$19*(План!$B$5:$B$19='008'!X$16)*('008'!$F9=План!$D$3:$O$3)) -> 0 | Y9: =SUMPRODUCT(План!$D$5:$O$19*(План!$B$5:$B$19='008'!Y$16)*('008'!$F9=План!$D$3:$O$3)) -> 0 | Z9: =SUMPRODUCT(План!$D$5:$O$19*(План!$B$5:$B$19='008'!Z$16)*('008'!$F9=План!$D$3:$O$3)) -> 0 | AA9: =SUMPRODUCT(План!$D$5:$O$19*(План!$B$5:$B$19='008'!AA$16)*('008'!$F9=План!$D$3:$O$3)) -> 0 | AB9: =SUMPRODUCT(План!$D$5:$O$19*(План!$B$5:$B$19='008'!AB$16)*('008'!$F9=План!$D$3:$O$3)) -> 0 | AC9: =SUMPRODUCT(План!$D$5:$O$19*(План!$B$5:$B$19='008'!AC$16)*('008'!$F9=План!$D$3:$O$3)) -> 0 | AD9: =SUMPRODUCT(План!$D$5:$O$19*(План!$B$5:$B$19='008'!AD$16)*('008'!$F9=План!$D$3:$O$3)) -> 0 | AE9: =SUMPRODUCT(План!$D$5:$O$19*(План!$B$5:$B$19='008'!AE$16)*('008'!$F9=План!$D$3:$O$3)) -> 0 | AF9: =SUMPRODUCT(План!$D$5:$O$19*(План!$B$5:$B$19='008'!AF$16)*('008'!$F9=План!$D$3:$O$3)) -> 0 | AG9: =SUMPRODUCT(План!$D$5:$O$19*(План!$B$5:$B$19='008'!AG$16)*('008'!$F9=План!$D$3:$O$3)) -> 0 | AH9: =SUMPRODUCT(План!$D$5:$O$19*(План!$B$5:$B$19='008'!AH$16)*('008'!$F9=План!$D$3:$O$3)) -> 0 | AI9: =SUMPRODUCT(План!$D$5:$O$19*(План!$B$5:$B$19='008'!AI$16)*('008'!$F9=План!$D$3:$O$3)) -> 0 | AJ9: =SUMPRODUCT(План!$D$5:$O$19*(План!$B$5:$B$19='008'!AJ$16)*('008'!$F9=План!$D$3:$O$3)) -> 0 | AK9: =SUMPRODUCT(План!$D$5:$O$19*(План!$B$5:$B$19='008'!AK$16)*('008'!$F9=План!$D$3:$O$3)) -> 0 | AL9: =SUMPRODUCT(План!$D$5:$O$19*(План!$B$5:$B$19='008'!AL$16)*('008'!$F9=План!$D$3:$O$3)) -> 0 | AM9: =SUMPRODUCT(План!$D$5:$O$19*(План!$B$5:$B$19='008'!AM$16)*('008'!$F9=План!$D$3:$O$3)) -> 0 | AN9: =SUMPRODUCT(План!$D$5:$O$19*(План!$B$5:$B$19='008'!AN$16)*('008'!$F9=План!$D$3:$O$3)) -> 0 | AO9: =SUMPRODUCT(План!$D$5:$O$19*(План!$B$5:$B$19='008'!AO$16)*('008'!$F9=План!$D$3:$O$3)) -> 0 | AP9: =SUMPRODUCT(План!$D$5:$O$19*(План!$B$5:$B$19='008'!AP$16)*('008'!$F9=План!$D$3:$O$3)) -> 0 | AQ9: =SUMPRODUCT(План!$D$5:$O$19*(План!$B$5:$B$19='008'!AQ$16)*('008'!$F9=План!$D$3:$O$3)) -> 0 | AR9: =SUMPRODUCT(План!$D$5:$O$19*(План!$B$5:$B$19='008'!AR$16)*('008'!$F9=План!$D$3:$O$3)) -> 0 | AS9: =SUMPRODUCT(План!$D$5:$O$19*(План!$B$5:$B$19='008'!AS$16)*('008'!$F9=План!$D$3:$O$3)) -> 0 | AT9: =SUMPRODUCT(План!$D$5:$O$19*(План!$B$5:$B$19='008'!AT$16)*('008'!$F9=План!$D$3:$O$3)) -> 0 | AU9: =SUMPRODUCT(План!$D$5:$O$19*(План!$B$5:$B$19='008'!AU$16)*('008'!$F9=План!$D$3:$O$3)) -> 0 | AV9: =SUMPRODUCT(План!$D$5:$O$19*(План!$B$5:$B$19='008'!AV$16)*('008'!$F9=План!$D$3:$O$3)) -> 0 | AW9: =SUMPRODUCT(План!$D$5:$O$19*(План!$B$5:$B$19='008'!AW$16)*('008'!$F9=План!$D$3:$O$3)) -> 0 | AX9: =SUMPRODUCT(План!$D$5:$O$19*(План!$B$5:$B$19='008'!AX$16)*('008'!$F9=План!$D$3:$O$3)) -> 0 | AY9: =SUMPRODUCT(План!$D$5:$O$19*(План!$B$5:$B$19='008'!AY$16)*('008'!$F9=План!$D$3:$O$3)) -> 0 | AZ9: =SUMPRODUCT(План!$D$5:$O$19*(План!$B$5:$B$19='008'!AZ$16)*('008'!$F9=План!$D$3:$O$3)) -> 0
F10: Сентябрь | G10: =SUMPRODUCT(План!$D$5:$O$19*(План!$B$5:$B$19='008'!G$16)*('008'!$F10=План!$D$3:$O$3)) -> 0 | H10: =SUMPRODUCT(План!$D$5:$O$19*(План!$B$5:$B$19='008'!H$16)*('008'!$F10=План!$D$3:$O$3)) -> 0 | I10: =SUMPRODUCT(План!$D$5:$O$19*(План!$B$5:$B$19='008'!I$16)*('008'!$F10=План!$D$3:$O$3)) -> 0 | J10: =SUMPRODUCT(План!$D$5:$O$19*(План!$B$5:$B$19='008'!J$16)*('008'!$F10=План!$D$3:$O$3)) -> 0 | K10: =SUMPRODUCT(План!$D$5:$O$19*(План!$B$5:$B$19='008'!K$16)*('008'!$F10=План!$D$3:$O$3)) -> 0 | L10: =SUMPRODUCT(План!$D$5:$O$19*(План!$B$5:$B$19='008'!L$16)*('008'!$F10=План!$D$3:$O$3)) -> 0 | M10: =SUMPRODUCT(План!$D$5:$O$19*(План!$B$5:$B$19='008'!M$16)*('008'!$F10=План!$D$3:$O$3)) -> 0 | N10: =SUMPRODUCT(План!$D$5:$O$19*(План!$B$5:$B$19='008'!N$16)*('008'!$F10=План!$D$3:$O$3)) -> 0 | O10: =SUMPRODUCT(План!$D$5:$O$19*(План!$B$5:$B$19='008'!O$16)*('008'!$F10=План!$D$3:$O$3)) -> 0 | P10: =SUMPRODUCT(План!$D$5:$O$19*(План!$B$5:$B$19='008'!P$16)*('008'!$F10=План!$D$3:$O$3)) -> 0 | Q10: =SUMPRODUCT(План!$D$5:$O$19*(План!$B$5:$B$19='008'!Q$16)*('008'!$F10=План!$D$3:$O$3)) -> 0 | R10: =SUMPRODUCT(План!$D$5:$O$19*(План!$B$5:$B$19='008'!R$16)*('008'!$F10=План!$D$3:$O$3)) -> 0 | S10: =SUMPRODUCT(План!$D$5:$O$19*(План!$B$5:$B$19='008'!S$16)*('008'!$F10=План!$D$3:$O$3)) -> 0 | T10: =SUMPRODUCT(План!$D$5:$O$19*(План!$B$5:$B$19='008'!T$16)*('008'!$F10=План!$D$3:$O$3)) -> 0 | U10: =SUMPRODUCT(План!$D$5:$O$19*(План!$B$5:$B$19='008'!U$16)*('008'!$F10=План!$D$3:$O$3)) -> 0 | V10: =SUMPRODUCT(План!$D$5:$O$19*(План!$B$5:$B$19='008'!V$16)*('008'!$F10=План!$D$3:$O$3)) -> 0 | W10: =SUMPRODUCT(План!$D$5:$O$19*(План!$B$5:$B$19='008'!W$16)*('008'!$F10=План!$D$3:$O$3)) -> 0 | X10: =SUMPRODUCT(План!$D$5:$O$19*(План!$B$5:$B$19='008'!X$16)*('008'!$F10=План!$D$3:$O$3)) -> 0 | Y10: =SUMPRODUCT(План!$D$5:$O$19*(План!$B$5:$B$19='008'!Y$16)*('008'!$F10=План!$D$3:$O$3)) -> 0 | Z10: =SUMPRODUCT(План!$D$5:$O$19*(План!$B$5:$B$19='008'!Z$16)*('008'!$F10=План!$D$3:$O$3)) -> 0 | AA10: =SUMPRODUCT(План!$D$5:$O$19*(План!$B$5:$B$19='008'!AA$16)*('008'!$F10=План!$D$3:$O$3)) -> 0 | AB10: =SUMPRODUCT(План!$D$5:$O$19*(План!$B$5:$B$19='008'!AB$16)*('008'!$F10=План!$D$3:$O$3)) -> 0 | AC10: =SUMPRODUCT(План!$D$5:$O$19*(План!$B$5:$B$19='008'!AC$16)*('008'!$F10=План!$D$3:$O$3)) -> 0 | AD10: =SUMPRODUCT(План!$D$5:$O$19*(План!$B$5:$B$19='008'!AD$16)*('008'!$F10=План!$D$3:$O$3)) -> 0 | AE10: =SUMPRODUCT(План!$D$5:$O$19*(План!$B$5:$B$19='008'!AE$16)*('008'!$F10=План!$D$3:$O$3)) -> 0 | AF10: =SUMPRODUCT(План!$D$5:$O$19*(План!$B$5:$B$19='008'!AF$16)*('008'!$F10=План!$D$3:$O$3)) -> 0 | AG10: =SUMPRODUCT(План!$D$5:$O$19*(План!$B$5:$B$19='008'!AG$16)*('008'!$F10=План!$D$3:$O$3)) -> 0 | AH10: =SUMPRODUCT(План!$D$5:$O$19*(План!$B$5:$B$19='008'!AH$16)*('008'!$F10=План!$D$3:$O$3)) -> 0 | AI10: =SUMPRODUCT(План!$D$5:$O$19*(План!$B$5:$B$19='008'!AI$16)*('008'!$F10=План!$D$3:$O$3)) -> 0 | AJ10: =SUMPRODUCT(План!$D$5:$O$19*(План!$B$5:$B$19='008'!AJ$16)*('008'!$F10=План!$D$3:$O$3)) -> 0 | AK10: =SUMPRODUCT(План!$D$5:$O$19*(План!$B$5:$B$19='008'!AK$16)*('008'!$F10=План!$D$3:$O$3)) -> 0 | AL10: =SUMPRODUCT(План!$D$5:$O$19*(План!$B$5:$B$19='008'!AL$16)*('008'!$F10=План!$D$3:$O$3)) -> 0 | AM10: =SUMPRODUCT(План!$D$5:$O$19*(План!$B$5:$B$19='008'!AM$16)*('008'!$F10=План!$D$3:$O$3)) -> 0 | AN10: =SUMPRODUCT(План!$D$5:$O$19*(План!$B$5:$B$19='008'!AN$16)*('008'!$F10=План!$D$3:$O$3)) -> 0 | AO10: =SUMPRODUCT(План!$D$5:$O$19*(План!$B$5:$B$19='008'!AO$16)*('008'!$F10=План!$D$3:$O$3)) -> 0 | AP10: =SUMPRODUCT(План!$D$5:$O$19*(План!$B$5:$B$19='008'!AP$16)*('008'!$F10=План!$D$3:$O$3)) -> 0 | AQ10: =SUMPRODUCT(План!$D$5:$O$19*(План!$B$5:$B$19='008'!AQ$16)*('008'!$F10=План!$D$3:$O$3)) -> 0 | AR10: =SUMPRODUCT(План!$D$5:$O$19*(План!$B$5:$B$19='008'!AR$16)*('008'!$F10=План!$D$3:$O$3)) -> 0 | AS10: =SUMPRODUCT(План!$D$5:$O$19*(План!$B$5:$B$19='008'!AS$16)*('008'!$F10=План!$D$3:$O$3)) -> 0 | AT10: =SUMPRODUCT(План!$D$5:$O$19*(План!$B$5:$B$19='008'!AT$16)*('008'!$F10=План!$D$3:$O$3)) -> 0 | AU10: =SUMPRODUCT(План!$D$5:$O$19*(План!$B$5:$B$19='008'!AU$16)*('008'!$F10=План!$D$3:$O$3)) -> 0 | AV10: =SUMPRODUCT(План!$D$5:$O$19*(План!$B$5:$B$19='008'!AV$16)*('008'!$F10=План!$D$3:$O$3)) -> 0 | AW10: =SUMPRODUCT(План!$D$5:$O$19*(План!$B$5:$B$19='008'!AW$16)*('008'!$F10=План!$D$3:$O$3)) -> 0 | AX10: =SUMPRODUCT(План!$D$5:$O$19*(План!$B$5:$B$19='008'!AX$16)*('008'!$F10=План!$D$3:$O$3)) -> 0 | AY10: =SUMPRODUCT(План!$D$5:$O$19*(План!$B$5:$B$19='008'!AY$16)*('008'!$F10=План!$D$3:$O$3)) -> 0 | AZ10: =SUMPRODUCT(План!$D$5:$O$19*(План!$B$5:$B$19='008'!AZ$16)*('008'!$F10=План!$D$3:$O$3)) -> 0
F11: Октябрь | G11: =SUMPRODUCT(План!$D$5:$O$19*(План!$B$5:$B$19='008'!G$16)*('008'!$F11=План!$D$3:$O$3)) -> 0 | H11: =SUMPRODUCT(План!$D$5:$O$19*(План!$B$5:$B$19='008'!H$16)*('008'!$F11=План!$D$3:$O$3)) -> 0 | I11: =SUMPRODUCT(План!$D$5:$O$19*(План!$B$5:$B$19='008'!I$16)*('008'!$F11=План!$D$3:$O$3)) -> 0 | J11: =SUMPRODUCT(План!$D$5:$O$19*(План!$B$5:$B$19='008'!J$16)*('008'!$F11=План!$D$3:$O$3)) -> 0 | K11: =SUMPRODUCT(План!$D$5:$O$19*(План!$B$5:$B$19='008'!K$16)*('008'!$F11=План!$D$3:$O$3)) -> 0 | L11: =SUMPRODUCT(План!$D$5:$O$19*(План!$B$5:$B$19='008'!L$16)*('008'!$F11=План!$D$3:$O$3)) -> 0 | M11: =SUMPRODUCT(План!$D$5:$O$19*(План!$B$5:$B$19='008'!M$16)*('008'!$F11=План!$D$3:$O$3)) -> 0 | N11: =SUMPRODUCT(План!$D$5:$O$19*(План!$B$5:$B$19='008'!N$16)*('008'!$F11=План!$D$3:$O$3)) -> 0 | O11: =SUMPRODUCT(План!$D$5:$O$19*(План!$B$5:$B$19='008'!O$16)*('008'!$F11=План!$D$3:$O$3)) -> 0 | P11: =SUMPRODUCT(План!$D$5:$O$19*(План!$B$5:$B$19='008'!P$16)*('008'!$F11=План!$D$3:$O$3)) -> 0 | Q11: =SUMPRODUCT(План!$D$5:$O$19*(План!$B$5:$B$19='008'!Q$16)*('008'!$F11=План!$D$3:$O$3)) -> 0 | R11: =SUMPRODUCT(План!$D$5:$O$19*(План!$B$5:$B$19='008'!R$16)*('008'!$F11=План!$D$3:$O$3)) -> 0 | S11: =SUMPRODUCT(План!$D$5:$O$19*(План!$B$5:$B$19='008'!S$16)*('008'!$F11=План!$D$3:$O$3)) -> 0 | T11: =SUMPRODUCT(План!$D$5:$O$19*(План!$B$5:$B$19='008'!T$16)*('008'!$F11=План!$D$3:$O$3)) -> 0 | U11: =SUMPRODUCT(План!$D$5:$O$19*(План!$B$5:$B$19='008'!U$16)*('008'!$F11=План!$D$3:$O$3)) -> 0 | V11: =SUMPRODUCT(План!$D$5:$O$19*(План!$B$5:$B$19='008'!V$16)*('008'!$F11=План!$D$3:$O$3)) -> 0 | W11: =SUMPRODUCT(План!$D$5:$O$19*(План!$B$5:$B$19='008'!W$16)*('008'!$F11=План!$D$3:$O$3)) -> 0 | X11: =SUMPRODUCT(План!$D$5:$O$19*(План!$B$5:$B$19='008'!X$16)*('008'!$F11=План!$D$3:$O$3)) -> 0 | Y11: =SUMPRODUCT(План!$D$5:$O$19*(План!$B$5:$B$19='008'!Y$16)*('008'!$F11=План!$D$3:$O$3)) -> 0 | Z11: =SUMPRODUCT(План!$D$5:$O$19*(План!$B$5:$B$19='008'!Z$16)*('008'!$F11=План!$D$3:$O$3)) -> 0 | AA11: =SUMPRODUCT(План!$D$5:$O$19*(План!$B$5:$B$19='008'!AA$16)*('008'!$F11=План!$D$3:$O$3)) -> 0 | AB11: =SUMPRODUCT(План!$D$5:$O$19*(План!$B$5:$B$19='008'!AB$16)*('008'!$F11=План!$D$3:$O$3)) -> 0 | AC11: =SUMPRODUCT(План!$D$5:$O$19*(План!$B$5:$B$19='008'!AC$16)*('008'!$F11=План!$D$3:$O$3)) -> 0 | AD11: =SUMPRODUCT(План!$D$5:$O$19*(План!$B$5:$B$19='008'!AD$16)*('008'!$F11=План!$D$3:$O$3)) -> 0 | AE11: =SUMPRODUCT(План!$D$5:$O$19*(План!$B$5:$B$19='008'!AE$16)*('008'!$F11=План!$D$3:$O$3)) -> 0 | AF11: =SUMPRODUCT(План!$D$5:$O$19*(План!$B$5:$B$19='008'!AF$16)*('008'!$F11=План!$D$3:$O$3)) -> 0 | AG11: =SUMPRODUCT(План!$D$5:$O$19*(План!$B$5:$B$19='008'!AG$16)*('008'!$F11=План!$D$3:$O$3)) -> 0 | AH11: =SUMPRODUCT(План!$D$5:$O$19*(План!$B$5:$B$19='008'!AH$16)*('008'!$F11=План!$D$3:$O$3)) -> 0 | AI11: =SUMPRODUCT(План!$D$5:$O$19*(План!$B$5:$B$19='008'!AI$16)*('008'!$F11=План!$D$3:$O$3)) -> 0 | AJ11: =SUMPRODUCT(План!$D$5:$O$19*(План!$B$5:$B$19='008'!AJ$16)*('008'!$F11=План!$D$3:$O$3)) -> 0 | AK11: =SUMPRODUCT(План!$D$5:$O$19*(План!$B$5:$B$19='008'!AK$16)*('008'!$F11=План!$D$3:$O$3)) -> 0 | AL11: =SUMPRODUCT(План!$D$5:$O$19*(План!$B$5:$B$19='008'!AL$16)*('008'!$F11=План!$D$3:$O$3)) -> 0 | AM11: =SUMPRODUCT(План!$D$5:$O$19*(План!$B$5:$B$19='008'!AM$16)*('008'!$F11=План!$D$3:$O$3)) -> 0 | AN11: =SUMPRODUCT(План!$D$5:$O$19*(План!$B$5:$B$19='008'!AN$16)*('008'!$F11=План!$D$3:$O$3)) -> 0 | AO11: =SUMPRODUCT(План!$D$5:$O$19*(План!$B$5:$B$19='008'!AO$16)*('008'!$F11=План!$D$3:$O$3)) -> 0 | AP11: =SUMPRODUCT(План!$D$5:$O$19*(План!$B$5:$B$19='008'!AP$16)*('008'!$F11=План!$D$3:$O$3)) -> 0 | AQ11: =SUMPRODUCT(План!$D$5:$O$19*(План!$B$5:$B$19='008'!AQ$16)*('008'!$F11=План!$D$3:$O$3)) -> 0 | AR11: =SUMPRODUCT(План!$D$5:$O$19*(План!$B$5:$B$19='008'!AR$16)*('008'!$F11=План!$D$3:$O$3)) -> 0 | AS11: =SUMPRODUCT(План!$D$5:$O$19*(План!$B$5:$B$19='008'!AS$16)*('008'!$F11=План!$D$3:$O$3)) -> 0 | AT11: =SUMPRODUCT(План!$D$5:$O$19*(План!$B$5:$B$19='008'!AT$16)*('008'!$F11=План!$D$3:$O$3)) -> 0 | AU11: =SUMPRODUCT(План!$D$5:$O$19*(План!$B$5:$B$19='008'!AU$16)*('008'!$F11=План!$D$3:$O$3)) -> 0 | AV11: =SUMPRODUCT(План!$D$5:$O$19*(План!$B$5:$B$19='008'!AV$16)*('008'!$F11=План!$D$3:$O$3)) -> 0 | AW11: =SUMPRODUCT(План!$D$5:$O$19*(План!$B$5:$B$19='008'!AW$16)*('008'!$F11=План!$D$3:$O$3)) -> 0 | AX11: =SUMPRODUCT(План!$D$5:$O$19*(План!$B$5:$B$19='008'!AX$16)*('008'!$F11=План!$D$3:$O$3)) -> 0 | AY11: =SUMPRODUCT(План!$D$5:$O$19*(План!$B$5:$B$19='008'!AY$16)*('008'!$F11=План!$D$3:$O$3)) -> 0 | AZ11: =SUMPRODUCT(План!$D$5:$O$19*(План!$B$5:$B$19='008'!AZ$16)*('008'!$F11=План!$D$3:$O$3)) -> 0
F12: Ноябрь | G12: =SUMPRODUCT(План!$D$5:$O$19*(План!$B$5:$B$19='008'!G$16)*('008'!$F12=План!$D$3:$O$3)) -> 0 | H12: =SUMPRODUCT(План!$D$5:$O$19*(План!$B$5:$B$19='008'!H$16)*('008'!$F12=План!$D$3:$O$3)) -> 0 | I12: =SUMPRODUCT(План!$D$5:$O$19*(План!$B$5:$B$19='008'!I$16)*('008'!$F12=План!$D$3:$O$3)) -> 0 | J12: =SUMPRODUCT(План!$D$5:$O$19*(План!$B$5:$B$19='008'!J$16)*('008'!$F12=План!$D$3:$O$3)) -> 0 | K12: =SUMPRODUCT(План!$D$5:$O$19*(План!$B$5:$B$19='008'!K$16)*('008'!$F12=План!$D$3:$O$3)) -> 0 | L12: =SUMPRODUCT(План!$D$5:$O$19*(План!$B$5:$B$19='008'!L$16)*('008'!$F12=План!$D$3:$O$3)) -> 0 | M12: =SUMPRODUCT(План!$D$5:$O$19*(План!$B$5:$B$19='008'!M$16)*('008'!$F12=План!$D$3:$O$3)) -> 0 | N12: =SUMPRODUCT(План!$D$5:$O$19*(План!$B$5:$B$19='008'!N$16)*('008'!$F12=План!$D$3:$O$3)) -> 0 | O12: =SUMPRODUCT(План!$D$5:$O$19*(План!$B$5:$B$19='008'!O$16)*('008'!$F12=План!$D$3:$O$3)) -> 0 | P12: =SUMPRODUCT(План!$D$5:$O$19*(План!$B$5:$B$19='008'!P$16)*('008'!$F12=План!$D$3:$O$3)) -> 0 | Q12: =SUMPRODUCT(План!$D$5:$O$19*(План!$B$5:$B$19='008'!Q$16)*('008'!$F12=План!$D$3:$O$3)) -> 0 | R12: =SUMPRODUCT(План!$D$5:$O$19*(План!$B$5:$B$19='008'!R$16)*('008'!$F12=План!$D$3:$O$3)) -> 0 | S12: =SUMPRODUCT(План!$D$5:$O$19*(План!$B$5:$B$19='008'!S$16)*('008'!$F12=План!$D$3:$O$3)) -> 0 | T12: =SUMPRODUCT(План!$D$5:$O$19*(План!$B$5:$B$19='008'!T$16)*('008'!$F12=План!$D$3:$O$3)) -> 0 | U12: =SUMPRODUCT(План!$D$5:$O$19*(План!$B$5:$B$19='008'!U$16)*('008'!$F12=План!$D$3:$O$3)) -> 0 | V12: =SUMPRODUCT(План!$D$5:$O$19*(План!$B$5:$B$19='008'!V$16)*('008'!$F12=План!$D$3:$O$3)) -> 0 | W12: =SUMPRODUCT(План!$D$5:$O$19*(План!$B$5:$B$19='008'!W$16)*('008'!$F12=План!$D$3:$O$3)) -> 0 | X12: =SUMPRODUCT(План!$D$5:$O$19*(План!$B$5:$B$19='008'!X$16)*('008'!$F12=План!$D$3:$O$3)) -> 0 | Y12: =SUMPRODUCT(План!$D$5:$O$19*(План!$B$5:$B$19='008'!Y$16)*('008'!$F12=План!$D$3:$O$3)) -> 0 | Z12: =SUMPRODUCT(План!$D$5:$O$19*(План!$B$5:$B$19='008'!Z$16)*('008'!$F12=План!$D$3:$O$3)) -> 0 | AA12: =SUMPRODUCT(План!$D$5:$O$19*(План!$B$5:$B$19='008'!AA$16)*('008'!$F12=План!$D$3:$O$3)) -> 0 | AB12: =SUMPRODUCT(План!$D$5:$O$19*(План!$B$5:$B$19='008'!AB$16)*('008'!$F12=План!$D$3:$O$3)) -> 0 | AC12: =SUMPRODUCT(План!$D$5:$O$19*(План!$B$5:$B$19='008'!AC$16)*('008'!$F12=План!$D$3:$O$3)) -> 0 | AD12: =SUMPRODUCT(План!$D$5:$O$19*(План!$B$5:$B$19='008'!AD$16)*('008'!$F12=План!$D$3:$O$3)) -> 0 | AE12: =SUMPRODUCT(План!$D$5:$O$19*(План!$B$5:$B$19='008'!AE$16)*('008'!$F12=План!$D$3:$O$3)) -> 0 | AF12: =SUMPRODUCT(План!$D$5:$O$19*(План!$B$5:$B$19='008'!AF$16)*('008'!$F12=План!$D$3:$O$3)) -> 0 | AG12: =SUMPRODUCT(План!$D$5:$O$19*(План!$B$5:$B$19='008'!AG$16)*('008'!$F12=План!$D$3:$O$3)) -> 0 | AH12: =SUMPRODUCT(План!$D$5:$O$19*(План!$B$5:$B$19='008'!AH$16)*('008'!$F12=План!$D$3:$O$3)) -> 0 | AI12: =SUMPRODUCT(План!$D$5:$O$19*(План!$B$5:$B$19='008'!AI$16)*('008'!$F12=План!$D$3:$O$3)) -> 0 | AJ12: =SUMPRODUCT(План!$D$5:$O$19*(План!$B$5:$B$19='008'!AJ$16)*('008'!$F12=План!$D$3:$O$3)) -> 0 | AK12: =SUMPRODUCT(План!$D$5:$O$19*(План!$B$5:$B$19='008'!AK$16)*('008'!$F12=План!$D$3:$O$3)) -> 0 | AL12: =SUMPRODUCT(План!$D$5:$O$19*(План!$B$5:$B$19='008'!AL$16)*('008'!$F12=План!$D$3:$O$3)) -> 0 | AM12: =SUMPRODUCT(План!$D$5:$O$19*(План!$B$5:$B$19='008'!AM$16)*('008'!$F12=План!$D$3:$O$3)) -> 0 | AN12: =SUMPRODUCT(План!$D$5:$O$19*(План!$B$5:$B$19='008'!AN$16)*('008'!$F12=План!$D$3:$O$3)) -> 0 | AO12: =SUMPRODUCT(План!$D$5:$O$19*(План!$B$5:$B$19='008'!AO$16)*('008'!$F12=План!$D$3:$O$3)) -> 0 | AP12: =SUMPRODUCT(План!$D$5:$O$19*(План!$B$5:$B$19='008'!AP$16)*('008'!$F12=План!$D$3:$O$3)) -> 0 | AQ12: =SUMPRODUCT(План!$D$5:$O$19*(План!$B$5:$B$19='008'!AQ$16)*('008'!$F12=План!$D$3:$O$3)) -> 0 | AR12: =SUMPRODUCT(План!$D$5:$O$19*(План!$B$5:$B$19='008'!AR$16)*('008'!$F12=План!$D$3:$O$3)) -> 0 | AS12: =SUMPRODUCT(План!$D$5:$O$19*(План!$B$5:$B$19='008'!AS$16)*('008'!$F12=План!$D$3:$O$3)) -> 0 | AT12: =SUMPRODUCT(План!$D$5:$O$19*(План!$B$5:$B$19='008'!AT$16)*('008'!$F12=План!$D$3:$O$3)) -> 0 | AU12: =SUMPRODUCT(План!$D$5:$O$19*(План!$B$5:$B$19='008'!AU$16)*('008'!$F12=План!$D$3:$O$3)) -> 0 | AV12: =SUMPRODUCT(План!$D$5:$O$19*(План!$B$5:$B$19='008'!AV$16)*('008'!$F12=План!$D$3:$O$3)) -> 0 | AW12: =SUMPRODUCT(План!$D$5:$O$19*(План!$B$5:$B$19='008'!AW$16)*('008'!$F12=План!$D$3:$O$3)) -> 0 | AX12: =SUMPRODUCT(План!$D$5:$O$19*(План!$B$5:$B$19='008'!AX$16)*('008'!$F12=План!$D$3:$O$3)) -> 0 | AY12: =SUMPRODUCT(План!$D$5:$O$19*(План!$B$5:$B$19='008'!AY$16)*('008'!$F12=План!$D$3:$O$3)) -> 0 | AZ12: =SUMPRODUCT(План!$D$5:$O$19*(План!$B$5:$B$19='008'!AZ$16)*('008'!$F12=План!$D$3:$O$3)) -> 0
F13: Декабрь | G13: =SUMPRODUCT(План!$D$5:$O$19*(План!$B$5:$B$19='008'!G$16)*('008'!$F13=План!$D$3:$O$3)) -> 0 | H13: =SUMPRODUCT(План!$D$5:$O$19*(План!$B$5:$B$19='008'!H$16)*('008'!$F13=План!$D$3:$O$3)) -> 0 | I13: =SUMPRODUCT(План!$D$5:$O$19*(План!$B$5:$B$19='008'!I$16)*('008'!$F13=План!$D$3:$O$3)) -> 0 | J13: =SUMPRODUCT(План!$D$5:$O$19*(План!$B$5:$B$19='008'!J$16)*('008'!$F13=План!$D$3:$O$3)) -> 0 | K13: =SUMPRODUCT(План!$D$5:$O$19*(План!$B$5:$B$19='008'!K$16)*('008'!$F13=План!$D$3:$O$3)) -> 0 | L13: =SUMPRODUCT(План!$D$5:$O$19*(План!$B$5:$B$19='008'!L$16)*('008'!$F13=План!$D$3:$O$3)) -> 0 | M13: =SUMPRODUCT(План!$D$5:$O$19*(План!$B$5:$B$19='008'!M$16)*('008'!$F13=План!$D$3:$O$3)) -> 0 | N13: =SUMPRODUCT(План!$D$5:$O$19*(План!$B$5:$B$19='008'!N$16)*('008'!$F13=План!$D$3:$O$3)) -> 0 | O13: =SUMPRODUCT(План!$D$5:$O$19*(План!$B$5:$B$19='008'!O$16)*('008'!$F13=План!$D$3:$O$3)) -> 0 | P13: =SUMPRODUCT(План!$D$5:$O$19*(План!$B$5:$B$19='008'!P$16)*('008'!$F13=План!$D$3:$O$3)) -> 0 | Q13: =SUMPRODUCT(План!$D$5:$O$19*(План!$B$5:$B$19='008'!Q$16)*('008'!$F13=План!$D$3:$O$3)) -> 0 | R13: =SUMPRODUCT(План!$D$5:$O$19*(План!$B$5:$B$19='008'!R$16)*('008'!$F13=План!$D$3:$O$3)) -> 0 | S13: =SUMPRODUCT(План!$D$5:$O$19*(План!$B$5:$B$19='008'!S$16)*('008'!$F13=План!$D$3:$O$3)) -> 0 | T13: =SUMPRODUCT(План!$D$5:$O$19*(План!$B$5:$B$19='008'!T$16)*('008'!$F13=План!$D$3:$O$3)) -> 0 | U13: =SUMPRODUCT(План!$D$5:$O$19*(План!$B$5:$B$19='008'!U$16)*('008'!$F13=План!$D$3:$O$3)) -> 0 | V13: =SUMPRODUCT(План!$D$5:$O$19*(План!$B$5:$B$19='008'!V$16)*('008'!$F13=План!$D$3:$O$3)) -> 0 | W13: =SUMPRODUCT(План!$D$5:$O$19*(План!$B$5:$B$19='008'!W$16)*('008'!$F13=План!$D$3:$O$3)) -> 0 | X13: =SUMPRODUCT(План!$D$5:$O$19*(План!$B$5:$B$19='008'!X$16)*('008'!$F13=План!$D$3:$O$3)) -> 0 | Y13: =SUMPRODUCT(План!$D$5:$O$19*(План!$B$5:$B$19='008'!Y$16)*('008'!$F13=План!$D$3:$O$3)) -> 0 | Z13: =SUMPRODUCT(План!$D$5:$O$19*(План!$B$5:$B$19='008'!Z$16)*('008'!$F13=План!$D$3:$O$3)) -> 0 | AA13: =SUMPRODUCT(План!$D$5:$O$19*(План!$B$5:$B$19='008'!AA$16)*('008'!$F13=План!$D$3:$O$3)) -> 0 | AB13: =SUMPRODUCT(План!$D$5:$O$19*(План!$B$5:$B$19='008'!AB$16)*('008'!$F13=План!$D$3:$O$3)) -> 0 | AC13: =SUMPRODUCT(План!$D$5:$O$19*(План!$B$5:$B$19='008'!AC$16)*('008'!$F13=План!$D$3:$O$3)) -> 0 | AD13: =SUMPRODUCT(План!$D$5:$O$19*(План!$B$5:$B$19='008'!AD$16)*('008'!$F13=План!$D$3:$O$3)) -> 0 | AE13: =SUMPRODUCT(План!$D$5:$O$19*(План!$B$5:$B$19='008'!AE$16)*('008'!$F13=План!$D$3:$O$3)) -> 0 | AF13: =SUMPRODUCT(План!$D$5:$O$19*(План!$B$5:$B$19='008'!AF$16)*('008'!$F13=План!$D$3:$O$3)) -> 0 | AG13: =SUMPRODUCT(План!$D$5:$O$19*(План!$B$5:$B$19='008'!AG$16)*('008'!$F13=План!$D$3:$O$3)) -> 0 | AH13: =SUMPRODUCT(План!$D$5:$O$19*(План!$B$5:$B$19='008'!AH$16)*('008'!$F13=План!$D$3:$O$3)) -> 0 | AI13: =SUMPRODUCT(План!$D$5:$O$19*(План!$B$5:$B$19='008'!AI$16)*('008'!$F13=План!$D$3:$O$3)) -> 0 | AJ13: =SUMPRODUCT(План!$D$5:$O$19*(План!$B$5:$B$19='008'!AJ$16)*('008'!$F13=План!$D$3:$O$3)) -> 0 | AK13: =SUMPRODUCT(План!$D$5:$O$19*(План!$B$5:$B$19='008'!AK$16)*('008'!$F13=План!$D$3:$O$3)) -> 0 | AL13: =SUMPRODUCT(План!$D$5:$O$19*(План!$B$5:$B$19='008'!AL$16)*('008'!$F13=План!$D$3:$O$3)) -> 0 | AM13: =SUMPRODUCT(План!$D$5:$O$19*(План!$B$5:$B$19='008'!AM$16)*('008'!$F13=План!$D$3:$O$3)) -> 0 | AN13: =SUMPRODUCT(План!$D$5:$O$19*(План!$B$5:$B$19='008'!AN$16)*('008'!$F13=План!$D$3:$O$3)) -> 0 | AO13: =SUMPRODUCT(План!$D$5:$O$19*(План!$B$5:$B$19='008'!AO$16)*('008'!$F13=План!$D$3:$O$3)) -> 0 | AP13: =SUMPRODUCT(План!$D$5:$O$19*(План!$B$5:$B$19='008'!AP$16)*('008'!$F13=План!$D$3:$O$3)) -> 0 | AQ13: =SUMPRODUCT(План!$D$5:$O$19*(План!$B$5:$B$19='008'!AQ$16)*('008'!$F13=План!$D$3:$O$3)) -> 0 | AR13: =SUMPRODUCT(План!$D$5:$O$19*(План!$B$5:$B$19='008'!AR$16)*('008'!$F13=План!$D$3:$O$3)) -> 0 | AS13: =SUMPRODUCT(План!$D$5:$O$19*(План!$B$5:$B$19='008'!AS$16)*('008'!$F13=План!$D$3:$O$3)) -> 0 | AT13: =SUMPRODUCT(План!$D$5:$O$19*(План!$B$5:$B$19='008'!AT$16)*('008'!$F13=План!$D$3:$O$3)) -> 0 | AU13: =SUMPRODUCT(План!$D$5:$O$19*(План!$B$5:$B$19='008'!AU$16)*('008'!$F13=План!$D$3:$O$3)) -> 0 | AV13: =SUMPRODUCT(План!$D$5:$O$19*(План!$B$5:$B$19='008'!AV$16)*('008'!$F13=План!$D$3:$O$3)) -> 0 | AW13: =SUMPRODUCT(План!$D$5:$O$19*(План!$B$5:$B$19='008'!AW$16)*('008'!$F13=План!$D$3:$O$3)) -> 0 | AX13: =SUMPRODUCT(План!$D$5:$O$19*(План!$B$5:$B$19='008'!AX$16)*('008'!$F13=План!$D$3:$O$3)) -> 0 | AY13: =SUMPRODUCT(План!$D$5:$O$19*(План!$B$5:$B$19='008'!AY$16)*('008'!$F13=План!$D$3:$O$3)) -> 0 | AZ13: =SUMPRODUCT(План!$D$5:$O$19*(План!$B$5:$B$19='008'!AZ$16)*('008'!$F13=План!$D$3:$O$3)) -> 0
BC14: Остаток | BE14: За год | BG14: Январь | BN14: Февраль | BU14: Март | CB14: Апрель | CI14: Май | CP14: Июнь | CW14: Июль | DD14: Август | DK14: Сентябрь | DR14: Октябрь | DY14: Ноябрь | EF14: Декабрь
BC15: ОМТС | BD15: Цех | BE15: План | BF15: Стоимость | BG15: План | BH15: Стоимость | BI15: Диф. | BJ15: Приход | BN15: План | BO15: Стоимость | BP15: Диф. | BQ15: Приход | BU15: План | BV15: Стоимость | BW15: Диф. | BX15: Приход | CB15: План | CC15: Стоимость | CD15: Диф. | CE15: Приход | CI15: План | CJ15: Стоимость | CK15: Диф. | CL15: Приход | CP15: План | CQ15: Стоимость | CR15: Диф. | CS15: Приход | CW15: План | CX15: Стоимость | CY15: Диф. | CZ15: Приход | DD15: План | DE15: Стоимость | DF15: Диф. | DG15: Приход | DK15: План | DL15: Стоимость | DM15: Диф. | DN15: Приход | DR15: План | DS15: Стоимость | DT15: Диф. | DU15: Приход | DY15: План | DZ15: Стоимость | EA15: Диф. | EB15: Приход | EF15: План | EG15: Стоимость | EH15: Диф. | EI15: Приход
A16: Сварка | B16: Цех | C16: Гр.опережения | D16: Обозначение | E16: Наименование | F16: материал | G16: ФКГП 185.01.00.000 | H16: ФКГП 185.01.00.000-01 | I16: ФКГП 185.01.00.000-02 | J16: ФКГП 185.01.00.000-03 | K16: ФКГП 291.01.00.000 | L16: ФКГП 291.01.00.000-01 | M16: ФКГП 291.01.00.000-02 | N16: ФКГП 291.01.00.000-03 | O16: ФКГП 291.01.00.000-04 | P16: ФКГП 228.01.00.000 | Q16: ФКГП 229.01.00.000 | R16: ФКГП 230.01.00.000 | S16: ФКГП 237.01.00.000 | T16: ФКГП 245.01.00.000 | U16: ФКГП 246.01.00.000 | V16: ФКГП 270.01.00.000 | W16: ФКГП 282.01.00.000 | X16: ФКГП 283.01.00.000 | Y16: ФКГП 298.01.00.000 | Z16: ФКГП 299.01.00.000 | AA16: ФКГП 301.01.00.000 | AB16: ФКГП 312.01.00.000 | AC16: ФКГП 314.01.00.000 | AD16: ФКГП 315.01.00.000 | AE16: ФКГП 316.01.00.000 | AF16: ФКГП 323.01.00.000 | AG16: ФКГП 324.01.00.000 | AH16: ФКГП 331.01.00.000 | AI16: ФКГП 332.01.00.000 | AJ16: ФКГП 333.01.00.000 | AK16: ФКГП 334.01.00.000 | AL16: ФКГП 335.01.00.000 | AM16: ФКГП 336.01.00.000 | AN16: ФКГП 355.01.00.000 | AO16: ФКГП 355.01.00.000-01 | AP16: ФКГП 356.01.00.000 | AQ16: ФКГП 378.01.00.000 | AR16: ФКГП 379.01.00.000 | AS16: ФКГП 418.01.00.000 | AT16: ФКГП 428.01.00.000 | AU16: ФКГП 429.01.00.000 | AV16: ФКГП 430.01.00.000 | AW16: ФКГП 450.01.00.000 | AX16: ФКГП 459.01.00.00 | AY16: ФКГП 336.01.00.000-01 | AZ16: ФКГП 464.01.00.000 | BA16: Производитель | BB16: Стоим. б/ндс | BJ16: 1 неделя | BK16: 2 неделя | BL16: 3 неделя | BM16: 4 неделя | BQ16: 1 неделя | BR16: 2 неделя | BS16: 3 неделя | BT16: 4 неделя | BX16: 1 неделя | BY16: 2 неделя | BZ16: 3 неделя | CA16: 4 неделя | CE16: 1 неделя | CF16: 2 неделя | CG16: 3 неделя | CH16: 4 неделя | CL16: 1 неделя | CM16: 2 неделя | CN16: 3 неделя | CO16: 4 неделя | CS16: 1 неделя | CT16: 2 неделя | CU16: 3 неделя | CV16: 4 неделя | CZ16: 1 неделя | DA16: 2 неделя | DB16: 3 неделя | DC16: 4 неделя | DG16: 1 неделя | DH16: 2 неделя | DI16: 3 неделя | DJ16: 4 неделя | DN16: 1 неделя | DO16: 2 неделя | DP16: 3 неделя | DQ16: 4 неделя | DU16: 1 неделя | DV16: 2 неделя | DW16: 3 неделя | DX16: 4 неделя | EB16: 1 неделя | EC16: 2 неделя | ED16: 3 неделя | EE16: 4 неделя | EI16: 1 неделя | EJ16: 2 неделя | EK16: 3 неделя | EL16: 4 неделя
A18: OO8 | B18: 4510 | C18: 1 | D18: ФКГП185.00.00.004 | E18: ключ 1шт на вагонокомплект(Ц6 хр) | F18: 09Г2С=4,0 | G18: 1 | K18: 1 | P18: 1 | Q18: 1 | R18: 1 | T18: 1 | U18: 1 | W18: 1 | X18: 1 | Y18: 1 | Z18: 1 | AB18: 1 | AM18: 1 | AN18: 1 | AO18: 1 | AP18: 1 | AQ18: 1 | AR18: 1 | AY18: 1 | AZ18: 1 | BE18: =SUMIF($BG$15:$EL$16,"План",BG18:EL18) -> 500 | BF18: =SUMIF($BG$15:$EL$16,"Стоимость",BG18:EL18) -> 0 | BG18: =SUMPRODUCT(G18:AZ18,$G$2:$AZ$2) -> 0 | BH18: =BG18*BB18 -> 0 | BI18: =SUM(BJ18:BM18)+BC18+BD18-BG18 -> 0 | BN18: =SUMPRODUCT(G18:AZ18,$G$3:$AZ$3) -> 0 | BO18: =BN18*BB18 -> 0 | BP18: =SUM(BQ18:BT18)-BN18+BI18 -> 0 | BU18: =SUMPRODUCT(G18:AZ18,$G$4:$AZ$4) -> 0 | BV18: =BU18*BB18 -> 0 | BW18: =SUM(BX18:CA18)-BU18+BP18 -> 0 | CB18: =SUMPRODUCT(G18:AZ18,$G$5:$AZ$5) -> 500 | CC18: =CB18*BB18 -> 0 | CD18: =SUM(CE18:CH18)-CB18+BW18 -> -500 | CI18: =SUMPRODUCT(G18:AZ18,$G$6:$AZ$6) -> 0 | CJ18: =CI18*BB18 -> 0 | CK18: =SUM(CL18:CO18)-CI18+CD18 -> -500 | CP18: =SUMPRODUCT(G18:AZ18,$G$7:$AZ$7) -> 0 | CQ18: =CP18*BB18 -> 0 | CR18: =SUM(CS18:CV18)-CP18+CK18 -> -500 | CW18: =SUMPRODUCT(G18:AZ18,$G$8:$AZ$8) -> 0 | CX18: =CW18*BB18 -> 0 | CY18: =SUM(CZ18:DC18)-CW18+CR18 -> -500 | DD18: =SUMPRODUCT(G18:AZ18,$G$9:$AZ$9) -> 0 | DE18: =DD18*BB18 -> 0 | DF18: =SUM(DG18:DJ18)-DD18+CY18 -> -500 | DK18: =SUMPRODUCT(G18:AZ18,$G$10:$AZ$10) -> 0 | DL18: =DK18*BB18 -> 0 | DM18: =SUM(DN18:DQ18)-DK18+DF18 -> -500 | DR18: =SUMPRODUCT(G18:AZ18,$G$11:$AZ$11) -> 0 | DS18: =DR18*BB18 -> 0 | DT18: =SUM(DU18:DX18)-DR18+DM18 -> -500 | DY18: =SUMPRODUCT(G18:AZ18,$G$12:$AZ$12) -> 0 | DZ18: =DY18*BB18 -> 0 | EA18: =SUM(EB18:EE18)-DY18+DT18 -> -500 | EF18: =SUMPRODUCT(G18:AZ18,$G$13:$AZ$13) -> 0 | EG18: =EF18*BB18 -> 0 | EH18: =SUM(EI18:EL18)-EF18+EA18 -> -500
A19: OO8 | B19: 45 | C19: 1 | D19: ФКГП185.00.00.006 | E19: ключ 1шт на вагонокомплект(Ц6 хр) | F19: 09Г2С=4,0 | H19: 1 | K19: 1 | P19: 1 | Q19: 1 | R19: 1 | T19: 1 | U19: 1 | W19: 1 | X19: 1 | Y19: 1 | Z19: 1 | AB19: 1 | AM19: 1 | AN19: 1 | AO19: 1 | AP19: 1 | AQ19: 1 | AR19: 1 | AY19: 1 | AZ19: 1 | BE19: 500 | BF19: 0 | BG19: 0 | BH19: 0 | BI19: 0 | BN19: 0 | BO19: 0 | BP19: 0 | BU19: 0 | BV19: 0 | BW19: 0 | CB19: 500 | CC19: 0 | CD19: -500 | CI19: 0 | CJ19: 0 | CK19: -500 | CP19: 0 | CQ19: 0 | CR19: -500 | CW19: 0 | CX19: 0 | CY19: -500 | DD19: 0 | DE19: 0 | DF19: -500 | DK19: 0 | DL19: 0 | DM19: -500 | DR19: 0 | DS19: 0 | DT19: -500 | DY19: 0 | DZ19: 0 | EA19: -500 | EF19: 0 | EG19: 0 | EH19: -500
A20: OO8 | B20: 10 | C20: 1 | D20: ФКГП185.00.00.002 | E20: гайка | F20: Ст3 Ф18 | G20: 5 | H20: 5 | I20: 3 | J20: 4 | P20: 3 | Q20: 4 | R20: 5 | T20: 3 | U20: 4 | BB20: 22.22 | BE20: 1800 | BF20: 39996 | BG20: 0 | BH20: 0 | BI20: 0 | BN20: 0 | BO20: 0 | BP20: 0 | BU20: 0 | BV20: 0 | BW20: 0 | CB20: 1500 | CC20: 33330 | CD20: -1500 | CI20: 300 | CJ20: 6666 | CK20: -1800 | CP20: 0 | CQ20: 0 | CR20: -1800 | CW20: 0 | CX20: 0 | CY20: -1800 | DD20: 0 | DE20: 0 | DF20: -1800 | DK20: 0 | DL20: 0 | DM20: -1800 | DR20: 0 | DS20: 0 | DT20: -1800 | DY20: 0 | DZ20: 0 | EA20: -1800 | EF20: 0 | EG20: 0 | EH20: -1800 | EM20: =(DR20+DY20+EF20)/3 -> 0
A21: OO8 | B21: 60 | C21: 1 | D21: ФКГП185.00.00.007 | E21: болт | F21: Ст20 Ф30 | G21: 5 | H21: 5 | I21: 3 | J21: 4 | P21: 3 | Q21: 4 | R21: 5 | T21: 3 | U21: 4 | BA21: ООО"Конвент" | BB21: 112 | BD21: 110 | BE21: 1800 | BF21: 201600 | BG21: 0 | BH21: 0 | BI21: =SUM(BJ21:BM21)+BC21+BD21-BG21 -> 110 | BN21: 0 | BO21: 0 | BP21: 110 | BU21: 0 | BV21: 0 | BW21: 110 | CB21: 1500 | CC21: 168000 | CD21: -1390 | CI21: 300 | CJ21: 33600 | CK21: -1690 | CP21: 0 | CQ21: 0 | CR21: -1690 | CW21: 0 | CX21: 0 | CY21: -1690 | DD21: 0 | DE21: 0 | DF21: -1690 | DK21: 0 | DL21: 0 | DM21: -1690 | DR21: 0 | DS21: 0 | DT21: -1690 | DY21: 0 | DZ21: 0 | EA21: -1690 | EF21: 0 | EG21: 0 | EH21: -1690 | EM21: =(DR21+DY21+EF21)/3 -> 0
A22: OO8 | B22: 10 | C22: 4 | D22: ФКГП185.00.00.005 | E22: винт | F22: Ст3 Ф18 | I22: 1 | P22: 2 | Q22: 5 | R22: 4 | T22: 1 | BC22: 3250 | BE22: 1100 | BF22: 0 | BG22: 0 | BH22: 0 | BI22: 3250 | BN22: 0 | BO22: 0 | BP22: 3250 | BU22: 0 | BV22: 0 | BW22: 3250 | CB22: 1000 | CC22: 0 | CD22: 2250 | CI22: 100 | CJ22: 0 | CK22: 2150 | CP22: 0 | CQ22: 0 | CR22: 2150 | CW22: 0 | CX22: 0 | CY22: 2150 | DD22: 0 | DE22: 0 | DF22: 2150 | DK22: 0 | DL22: 0 | DM22: 2150 | DR22: 0 | DS22: 0 | DT22: 2150 | DY22: 0 | DZ22: 0 | EA22: 2150 | EF22: 0 | EG22: 0 | EH22: 2150
A23: OO8 | B23: 10 | C23: 1 | D23: ФКГП237.00.00.001 | E23: втулка | F23: Ст20 Ф32 | K23: 3 | L23: 3 | M23: 3 | N23: 4 | S23: 4 | V23: 9 | W23: 2 | X23: 4 | Y23: 2 | AA23: 2 | AB23: 2 | AC23: 5 | AD23: 6 | AE23: 3 | AF23: 2 | AG23: 2 | AH23: 5 | AI23: 4 | AJ23: 3 | AK23: 2 | AL23: 2 | AM23: 2 | AN23: 2 | AO23: 2 | AP23: 2 | AQ23: 4 | AR23: 2 | AS23: 5 | AT23: 5 | AU23: 3 | AV23: 3 | AY23: 2 | AZ23: 2 | BC23: 1635 | BE23: 600 | BF23: 0 | BG23: 0 | BH23: 0 | BI23: 1635 | BN23: 0 | BO23: 0 | BP23: 1635 | BU23: 0 | BV23: 0 | BW23: 1635 | CB23: 0 | CC23: 0 | CD23: 1635 | CI23: 600 | CJ23: 0 | CK23: 1035 | CP23: 0 | CQ23: 0 | CR23: 1035 | CW23: 0 | CX23: 0 | CY23: 1035 | DD23: 0 | DE23: 0 | DF23: 1035 | DK23: 0 | DL23: 0 | DM23: 1035 | DR23: 0 | DS23: 0 | DT23: 1035 | DY23: 0 | DZ23: 0 | EA23: 1035 | EF23: 0 | EG23: 0 | EH23: 1035
A24: OO8 | B24: 45 | C24: 2 | D24: ФКГП185.01.01.001 | E24: скоба(Ц9 12хр.) | F24: 09Г2С=4,0 | G24: 2 | H24: 2 | I24: 2 | J24: 2 | K24: 2 | L24: 2 | M24: 2 | N24: 2 | O24: 2 | P24: 2 | Q24: 2 | R24: 2 | S24: 2 | T24: 2 | U24: 1 | V24: 2 | W24: 1 | X24: 2 | Y24: 2 | Z24: 2 | AA24: 2 | AB24: 2 | AC24: 2 | AD24: 2 | AE24: 2 | AF24: 2 | AG24: 2 | AH24: 2 | AI24: 2 | AJ24: 2 | AK24: 1 | AL24: 1 | AM24: 1 | AN24: 1 | AO24: 1 | AP24: 1 | AQ24: 2 | AR24: 1 | AS24: 2 | AT24: 2 | AU24: 2 | AV24: 2 | AY24: 1 | AZ24: 1 | BC24: 1700 | BE24: 2200 | BF24: 0 | BG24: 0 | BH24: 0 | BI24: 1700 | BN24: 0 | BO24: 0 | BP24: 1700 | BU24: 0 | BV24: 0 | BW24: 1700 | CB24: 1000 | CC24: 0 | CD24: 700 | CI24: 1200 | CJ24: 0 | CK24: -500 | CP24: 0 | CQ24: 0 | CR24: -500 | CW24: 0 | CX24: 0 | CY24: -500 | DD24: 0 | DE24: 0 | DF24: -500 | DK24: 0 | DL24: 0 | DM24: -500 | DR24: 0 | DS24: 0 | DT24: -500 | DY24: 0 | DZ24: 0 | EA24: -500 | EF24: 0 | EG24: 0 | EH24: -500
A25: OO8 | B25: 10 | C25: 4 | D25: ФКГП185.01.01.015 | E25: основание | F25: ПА-ДК-01 | G25: 1 | BC25: 4619 | BE25: 0 | BF25: 0 | BG25: 0 | BH25: 0 | BI25: 4619 | BN25: 0 | BO25: 0 | BP25: 4619 | BU25: 0 | BV25: 0 | BW25: 4619 | CB25: 0 | CC25: 0 | CD25: 4619 | CI25: 0 | CJ25: 0 | CK25: 4619 | CP25: 0 | CQ25: 0 | CR25: 4619 | CW25: 0 | CX25: 0 | CY25: 4619 | DD25: 0 | DE25: 0 | DF25: 4619 | DK25: 0 | DL25: 0 | DM25: 4619 | DR25: 0 | DS25: 0 | DT25: 4619 | DY25: 0 | DZ25: 0 | EA25: 4619 | EF25: 0 | EG25: 0 | EH25: 4619
ED27: =COLUMN() -> 134 | EE27: =COLUMN() -> 135 | EF27: =COLUMN() -> 136 | EG27: =COLUMN() -> 137 | EH27: =COLUMN() -> 138 | EI27: =COLUMN() -> 139 | EJ27: =COLUMN() -> 140 | EK27: =COLUMN() -> 141 | EL27: =COLUMN() -> 142 | EM27: =COLUMN() -> 143

Sheet О23
E2: План | F2: Январь | G2: =SUMPRODUCT(План!$D$5:$O$19*(План!$B$5:$B$19=О23!G$16)*(О23!$F2=План!$D$3:$O$3)) -> 0 | H2: =SUMPRODUCT(План!$D$5:$O$19*(План!$B$5:$B$19=О23!H$16)*(О23!$F2=План!$D$3:$O$3)) -> 0
F3: Февраль | G3: 100 | H3: =SUMPRODUCT(План!$D$5:$O$19*(План!$B$5:$B$19=О23!H$16)*(О23!$F3=План!$D$3:$O$3)) -> 0
F4: Март | G4: =SUMPRODUCT(План!$D$5:$O$19*(План!$B$5:$B$19=О23!G$16)*(О23!$F4=План!$D$3:$O$3)) -> 0 | H4: =SUMPRODUCT(План!$D$5:$O$19*(План!$B$5:$B$19=О23!H$16)*(О23!$F4=План!$D$3:$O$3)) -> 0
F5: Апрель | G5: =SUMPRODUCT(План!$D$5:$O$19*(План!$B$5:$B$19=О23!G$16)*(О23!$F5=План!$D$3:$O$3)) -> 0 | H5: =SUMPRODUCT(План!$D$5:$O$19*(План!$B$5:$B$19=О23!H$16)*(О23!$F5=План!$D$3:$O$3)) -> 0
F6: Май | G6: =SUMPRODUCT(План!$D$5:$O$19*(План!$B$5:$B$19=О23!G$16)*(О23!$F6=План!$D$3:$O$3)) -> 0 | H6: 200
F7: Июнь | G7: =SUMPRODUCT(План!$D$5:$O$19*(План!$B$5:$B$19=О23!G$16)*(О23!$F7=План!$D$3:$O$3)) -> 0 | H7: =SUMPRODUCT(План!$D$5:$O$19*(План!$B$5:$B$19=О23!H$16)*(О23!$F7=План!$D$3:$O$3)) -> 0
F8: Июль | G8: =SUMPRODUCT(План!$D$5:$O$19*(План!$B$5:$B$19=О23!G$16)*(О23!$F8=План!$D$3:$O$3)) -> 0 | H8: =SUMPRODUCT(План!$D$5:$O$19*(План!$B$5:$B$19=О23!H$16)*(О23!$F8=План!$D$3:$O$3)) -> 0
F9: Август | G9: =SUMPRODUCT(План!$D$5:$O$19*(План!$B$5:$B$19=О23!G$16)*(О23!$F9=План!$D$3:$O$3)) -> 0 | H9: =SUMPRODUCT(План!$D$5:$O$19*(План!$B$5:$B$19=О23!H$16)*(О23!$F9=План!$D$3:$O$3)) -> 0
F10: Сентябрь | G10: =SUMPRODUCT(План!$D$5:$O$19*(План!$B$5:$B$19=О23!G$16)*(О23!$F10=План!$D$3:$O$3)) -> 0 | H10: =SUMPRODUCT(План!$D$5:$O$19*(План!$B$5:$B$19=О23!H$16)*(О23!$F10=План!$D$3:$O$3)) -> 0
F11: Октябрь | G11: =SUMPRODUCT(План!$D$5:$O$19*(План!$B$5:$B$19=О23!G$16)*(О23!$F11=План!$D$3:$O$3)) -> 0 | H11: =SUMPRODUCT(План!$D$5:$O$19*(План!$B$5:$B$19=О23!H$16)*(О23!$F11=План!$D$3:$O$3)) -> 0
F12: Ноябрь | G12: =SUMPRODUCT(План!$D$5:$O$19*(План!$B$5:$B$19=О23!G$16)*(О23!$F12=План!$D$3:$O$3)) -> 0 | H12: =SUMPRODUCT(План!$D$5:$O$19*(План!$B$5:$B$19=О23!H$16)*(О23!$F12=План!$D$3:$O$3)) -> 0
F13: Декабрь | G13: =SUMPRODUCT(План!$D$5:$O$19*(План!$B$5:$B$19=О23!G$16)*(О23!$F13=План!$D$3:$O$3)) -> 0 | H13: =SUMPRODUCT(План!$D$5:$O$19*(План!$B$5:$B$19=О23!H$16)*(О23!$F13=План!$D$3:$O$3)) -> 0
K14: Остаток | M14: За год | O14: Январь | V14: Февраль | AC14: Март | AJ14: Апрель | AQ14: Май | AX14: Июнь | BE14: Июль | BL14: Август | BS14: Сентябрь | BZ14: Октябрь | CG14: Ноябрь | CN14: Декабрь
K15: ОМТС | L15: Цех | M15: План | N15: Стоимость | O15: План | P15: Стоимость | Q15: Диф. | R15: Приход | V15: План | W15: Стоимость | X15: Диф. | Y15: Приход | AC15: План | AD15: Стоимость | AE15: Диф. | AF15: Приход | AJ15: План | AK15: Стоимость | AL15: Диф. | AM15: Приход | AQ15: План | AR15: Стоимость | AS15: Диф. | AT15: Приход | AX15: План | AY15: Стоимость | AZ15: Диф. | BA15: Приход | BE15: План | BF15: Стоимость | BG15: Диф. | BH15: Приход | BL15: План | BM15: Стоимость | BN15: Диф. | BO15: Приход | BS15: План | BT15: Стоимость | BU15: Диф. | BV15: Приход | BZ15: План | CA15: Стоимость | CB15: Диф. | CC15: Приход | CG15: План | CH15: Стоимость | CI15: Диф. | CJ15: Приход | CN15: План | CO15: Стоимость | CP15: Диф. | CQ15: Приход
A16: Сварка | B16: Цех | C16: Гр.опережения | D16: Обозначение | E16: Наименование | F16: Материал | G16: ФКГП112.00.000 | H16: ФКГП 112.00.000-04 | I16: Производитель | J16: Стоим. б/ндс | R16: 1 неделя | S16: 2 неделя | T16: 3 неделя | U16: 4 неделя | Y16: 1 неделя | Z16: 2 неделя | AA16: 3 неделя | AB16: 4 неделя | AF16: 1 неделя | AG16: 2 неделя | AH16: 3 неделя | AI16: 4 неделя | AM16: 1 неделя | AN16: 2 неделя | AO16: 3 неделя | AP16: 4 неделя | AT16: 1 неделя | AU16: 2 неделя | AV16: 3 неделя | AW16: 4 неделя | BA16: 1 неделя | BB16: 2 неделя | BC16: 3 неделя | BD16: 4 неделя | BH16: 1 неделя | BI16: 2 неделя | BJ16: 3 неделя | BK16: 4 неделя | BO16: 1 неделя | BP16: 2 неделя | BQ16: 3 неделя | BR16: 4 неделя | BV16: 1 неделя | BW16: 2 неделя | BX16: 3 неделя | BY16: 4 неделя | CC16: 1 неделя | CD16: 2 неделя | CE16: 3 неделя | CF16: 4 неделя | CJ16: 1 неделя | CK16: 2 неделя | CL16: 3 неделя | CM16: 4 неделя | CQ16: 1 неделя | CR16: 2 неделя | CS16: 3 неделя | CT16: 4 неделя
A18: O23 | B18: 10 | C18: 1 | D18: ФКГП112.00.001 | E18: Корпус | F18: АК-12 | G18: 1 | H18: 1 | M18: =SUMIF($O$15:$CT$16,"План",O18:CT18) -> 300 | N18: =SUMIF($O$15:$CT$16,"Стоимость",O18:CT18) -> 0 | O18: =SUMPRODUCT(G18:H18,$G$2:$H$2) -> 0 | P18: =O18*J18 -> 0 | Q18: =SUM(R18:U18)+L18+K18-O18 -> 0 | V18: =SUMPRODUCT(G18:H18,$G$3:$H$3) -> 100 | W18: =V18*J18 -> 0 | X18: =SUM(Y18:AB18)-V18+Q18 -> -100 | AC18: =SUMPRODUCT(G18:H18,$G$4:$H$4) -> 0 | AD18: =AC18*J18 -> 0 | AE18: =SUM(AF18:AI18)-AC18+X18 -> -100 | AJ18: =SUMPRODUCT(G18:H18,$G$5:$H$5) -> 0 | AK18: =AJ18*J18 -> 0 | AL18: =SUM(AM18:AP18)-AJ18+AE18 -> -100 | AQ18: =SUMPRODUCT(G18:H18,$G$6:$H$6) -> 200 | AR18: =AQ18*J18 -> 0 | AS18: =SUM(AT18:AW18)-AQ18+AL18 -> -300 | AX18: =SUMPRODUCT(G18:H18,$G$7:$H$7) -> 0 | AY18: =AX18*J18 -> 0 | AZ18: =SUM(BA18:BD18)-AX18+AS18 -> -300 | BE18: =SUMPRODUCT(G18:H18,$G$8:$H$8) -> 0 | BF18: =BE18*J18 -> 0 | BG18: =SUM(BH18:BK18)-BE18+AZ18 -> -300 | BL18: =SUMPRODUCT(G18:H18,$G$9:$H$9) -> 0 | BM18: =BL18*J18 -> 0 | BN18: =SUM(BO18:BR18)-BL18+BG18 -> -300 | BS18: =SUMPRODUCT(G18:H18,$G$10:$H$10) -> 0 | BT18: =BS18*J18 -> 0 | BU18: =SUM(BV18:BY18)-BS18+BN18 -> -300 | BZ18: =SUMPRODUCT(G18:H18,$G$11:$H$11) -> 0 | CA18: =BZ18*J18 -> 0 | CB18: =SUM(CC18:CF18)-BZ18+BU18 -> -300 | CG18: =SUMPRODUCT(G18:H18,$G$12:$H$12) -> 0 | CH18: =CG18*J18 -> 0 | CI18: =SUM(CJ18:CM18)-CG18+CB18 -> -300 | CN18: =SUMPRODUCT(G18:H18,$G$13:$H$13) -> 0 | CO18: =CN18*J18 -> 0 | CP18: =SUM(CQ18:CT18)-CN18+CI18 -> -300
A19: O23 | B19: 10 | C19: 1 | D19: ФКГП112.00.002 | E19: Крышка | F19: АК-12 | G19: 1 | H19: 1 | M19: =SUMIF($O$15:$CT$16,"План",O19:CT19) -> 300 | N19: =SUMIF($O$15:$CT$16,"Стоимость",O19:CT19) -> 0 | O19: =SUMPRODUCT(G19:H19,$G$2:$H$2) -> 0 | P19: =O19*J19 -> 0 | Q19: =SUM(R19:U19)+L19+K19-O19 -> 0 | V19: =SUMPRODUCT(G19:H19,$G$3:$H$3) -> 100 | W19: =V19*J19 -> 0 | X19: =SUM(Y19:AB19)-V19+Q19 -> -100 | AC19: =SUMPRODUCT(G19:H19,$G$4:$H$4) -> 0 | AD19: =AC19*J19 -> 0 | AE19: =SUM(AF19:AI19)-AC19+X19 -> -100 | AJ19: =SUMPRODUCT(G19:H19,$G$5:$H$5) -> 0 | AK19: =AJ19*J19 -> 0 | AL19: =SUM(AM19:AP19)-AJ19+AE19 -> -100 | AQ19: =SUMPRODUCT(G19:H19,$G$6:$H$6) -> 200 | AR19: =AQ19*J19 -> 0 | AS19: =SUM(AT19:AW19)-AQ19+AL19 -> -300 | AX19: =SUMPRODUCT(G19:H19,$G$7:$H$7) -> 0 | AY19: =AX19*J19 -> 0 | AZ19: =SUM(BA19:BD19)-AX19+AS19 -> -300 | BE19: =SUMPRODUCT(G19:H19,$G$8:$H$8) -> 0 | BF19: =BE19*J19 -> 0 | BG19: =SUM(BH19:BK19)-BE19+AZ19 -> -300 | BL19: =SUMPRODUCT(G19:H19,$G$9:$H$9) -> 0 | BM19: =BL19*J19 -> 0 | BN19: =SUM(BO19:BR19)-BL19+BG19 -> -300 | BS19: =SUMPRODUCT(G19:H19,$G$10:$H$10) -> 0 | BT19: =BS19*J19 -> 0 | BU19: =SUM(BV19:BY19)-BS19+BN19 -> -300 | BZ19: =SUMPRODUCT(G19:H19,$G$11:$H$11) -> 0 | CA19: =BZ19*J19 -> 0 | CB19: =SUM(CC19:CF19)-BZ19+BU19 -> -300 | CG19: =SUMPRODUCT(G19:H19,$G$12:$H$12) -> 0 | CH19: =CG19*J19 -> 0 | CI19: =SUM(CJ19:CM19)-CG19+CB19 -> -300 | CN19: =SUMPRODUCT(G19:H19,$G$13:$H$13) -> 0 | CO19: =CN19*J19 -> 0 | CP19: =SUM(CQ19:CT19)-CN19+CI19 -> -300
A20: O23 | B20: 60 | C20: 4 | D20: ФКГП112.00.003 | E20: Пружина | F20: Проволока Б-2 Ф1 | G20: 1 | H20: 1 | I20: ООО"Охта" | J20: 4.1 | M20: =SUMIF($O$15:$CT$16,"План",O20:CT20) -> 300 | N20: =SUMIF($O$15:$CT$16,"Стоимость",O20:CT20) -> 1230 | O20: =SUMPRODUCT(G20:H20,$G$2:$H$2) -> 0 | P20: =O20*J20 -> 0 | Q20: =SUM(R20:U20)+L20+K20-O20 -> 0 | V20: =SUMPRODUCT(G20:H20,$G$3:$H$3) -> 100 | W20: =V20*J20 -> 410 | X20: =SUM(Y20:AB20)-V20+Q20 -> -100 | AC20: =SUMPRODUCT(G20:H20,$G$4:$H$4) -> 0 | AD20: =AC20*J20 -> 0 | AE20: =SUM(AF20:AI20)-AC20+X20 -> -100 | AJ20: =SUMPRODUCT(G20:H20,$G$5:$H$5) -> 0 | AK20: =AJ20*J20 -> 0 | AL20: =SUM(AM20:AP20)-AJ20+AE20 -> -100 | AQ20: =SUMPRODUCT(G20:H20,$G$6:$H$6) -> 200 | AR20: =AQ20*J20 -> 820 | AS20: =SUM(AT20:AW20)-AQ20+AL20 -> -300 | AX20: =SUMPRODUCT(G20:H20,$G$7:$H$7) -> 0 | AY20: =AX20*J20 -> 0 | AZ20: =SUM(BA20:BD20)-AX20+AS20 -> -300 | BE20: =SUMPRODUCT(G20:H20,$G$8:$H$8) -> 0 | BF20: =BE20*J20 -> 0 | BG20: =SUM(BH20:BK20)-BE20+AZ20 -> -300 | BL20: =SUMPRODUCT(G20:H20,$G$9:$H$9) -> 0 | BM20: =BL20*J20 -> 0 | BN20: =SUM(BO20:BR20)-BL20+BG20 -> -300 | BS20: =SUMPRODUCT(G20:H20,$G$10:$H$10) -> 0 | BT20: =BS20*J20 -> 0 | BU20: =SUM(BV20:BY20)-BS20+BN20 -> -300 | BZ20: =SUMPRODUCT(G20:H20,$G$11:$H$11) -> 0 | CA20: =BZ20*J20 -> 0 | CB20: =SUM(CC20:CF20)-BZ20+BU20 -> -300 | CG20: =SUMPRODUCT(G20:H20,$G$12:$H$12) -> 0 | CH20: =CG20*J20 -> 0 | CI20: =SUM(CJ20:CM20)-CG20+CB20 -> -300 | CN20: =SUMPRODUCT(G20:H20,$G$13:$H$13) -> 0 | CO20: =CN20*J20 -> 0 | CP20: =SUM(CQ20:CT20)-CN20+CI20 -> -300
A21: O23 | B21: 10 | C21: 4 | D21: ФКГП112.00.004 | E21: Винт | F21: ПА6 Ф25 | G21: 1 | H21: 1 | M21: =SUMIF($O$15:$CT$16,"План",O21:CT21) -> 300 | N21: =SUMIF($O$15:$CT$16,"Стоимость",O21:CT21) -> 0 | O21: =SUMPRODUCT(G21:H21,$G$2:$H$2) -> 0 | P21: =O21*J21 -> 0 | Q21: =SUM(R21:U21)+L21+K21-O21 -> 0 | V21: =SUMPRODUCT(G21:H21,$G$3:$H$3) -> 100 | W21: =V21*J21 -> 0 | X21: =SUM(Y21:AB21)-V21+Q21 -> -100 | AC21: =SUMPRODUCT(G21:H21,$G$4:$H$4) -> 0 | AD21: =AC21*J21 -> 0 | AE21: =SUM(AF21:AI21)-AC21+X21 -> -100 | AJ21: =SUMPRODUCT(G21:H21,$G$5:$H$5) -> 0 | AK21: =AJ21*J21 -> 0 | AL21: =SUM(AM21:AP21)-AJ21+AE21 -> -100 | AQ21: =SUMPRODUCT(G21:H21,$G$6:$H$6) -> 200 | AR21: =AQ21*J21 -> 0 | AS21: =SUM(AT21:AW21)-AQ21+AL21 -> -300 | AX21: =SUMPRODUCT(G21:H21,$G$7:$H$7) -> 0 | AY21: =AX21*J21 -> 0 | AZ21: =SUM(BA21:BD21)-AX21+AS21 -> -300 | BE21: =SUMPRODUCT(G21:H21,$G$8:$H$8) -> 0 | BF21: =BE21*J21 -> 0 | BG21: =SUM(BH21:BK21)-BE21+AZ21 -> -300 | BL21: =SUMPRODUCT(G21:H21,$G$9:$H$9) -> 0 | BM21: =BL21*J21 -> 0 | BN21: =SUM(BO21:BR21)-BL21+BG21 -> -300 | BS21: =SUMPRODUCT(G21:H21,$G$10:$H$10) -> 0 | BT21: =BS21*J21 -> 0 | BU21: =SUM(BV21:BY21)-BS21+BN21 -> -300 | BZ21: =SUMPRODUCT(G21:H21,$G$11:$H$11) -> 0 | CA21: =BZ21*J21 -> 0 | CB21: =SUM(CC21:CF21)-BZ21+BU21 -> -300 | CG21: =SUMPRODUCT(G21:H21,$G$12:$H$12) -> 0 | CH21: =CG21*J21 -> 0 | CI21: =SUM(CJ21:CM21)-CG21+CB21 -> -300 | CN21: =SUMPRODUCT(G21:H21,$G$13:$H$13) -> 0 | CO21: =CN21*J21 -> 0 | CP21: =SUM(CQ21:CT21)-CN21+CI21 -> -300

Sheet 576
E2: План | F2: Январь | G2: =SUMPRODUCT([1]План!$D$5:$O$269*([1]План!$B$5:$B$269=G$16)*($F2=[1]План!$D$3:$O$3)) -> 0 | H2: =SUMPRODUCT([1]План!$D$5:$O$269*([1]План!$B$5:$B$269=H$16)*($F2=[1]План!$D$3:$O$3)) -> 0 | I2: =SUMPRODUCT([1]План!$D$5:$O$269*([1]План!$B$5:$B$269=I$16)*($F2=[1]План!$D$3:$O$3)) -> 0 | J2: =SUMPRODUCT([1]План!$D$5:$O$269*([1]План!$B$5:$B$269=J$16)*($F2=[1]План!$D$3:$O$3)) -> 0 | K2: =SUMPRODUCT([1]План!$D$5:$O$269*([1]План!$B$5:$B$269=K$16)*($F2=[1]План!$D$3:$O$3)) -> 0
F3: Февраль | G3: =SUMPRODUCT([1]План!$D$5:$O$269*([1]План!$B$5:$B$269=G$16)*($F3=[1]План!$D$3:$O$3)) -> 0 | I3: =SUMPRODUCT([1]План!$D$5:$O$269*([1]План!$B$5:$B$269=I$16)*($F3=[1]План!$D$3:$O$3)) -> 0 | J3: =SUMPRODUCT([1]План!$D$5:$O$269*([1]План!$B$5:$B$269=J$16)*($F3=[1]План!$D$3:$O$3)) -> 0 | K3: =SUMPRODUCT([1]План!$D$5:$O$269*([1]План!$B$5:$B$269=K$16)*($F3=[1]План!$D$3:$O$3)) -> 0
F4: Март | G4: =SUMPRODUCT([1]План!$D$5:$O$269*([1]План!$B$5:$B$269=G$16)*($F4=[1]План!$D$3:$O$3)) -> 0 | H4: =SUMPRODUCT([1]План!$D$5:$O$269*([1]План!$B$5:$B$269=H$16)*($F4=[1]План!$D$3:$O$3)) -> 0 | I4: =SUMPRODUCT([1]План!$D$5:$O$269*([1]План!$B$5:$B$269=I$16)*($F4=[1]План!$D$3:$O$3)) -> 0 | J4: =SUMPRODUCT([1]План!$D$5:$O$269*([1]План!$B$5:$B$269=J$16)*($F4=[1]План!$D$3:$O$3)) -> 0 | K4: =SUMPRODUCT([1]План!$D$5:$O$269*([1]План!$B$5:$B$269=K$16)*($F4=[1]План!$D$3:$O$3)) -> 0
F5: Апрель | G5: =SUMPRODUCT([1]План!$D$5:$O$269*([1]План!$B$5:$B$269=G$16)*($F5=[1]План!$D$3:$O$3)) -> 0 | H5: =SUMPRODUCT([1]План!$D$5:$O$269*([1]План!$B$5:$B$269=H$16)*($F5=[1]План!$D$3:$O$3)) -> 0 | I5: =SUMPRODUCT([1]План!$D$5:$O$269*([1]План!$B$5:$B$269=I$16)*($F5=[1]План!$D$3:$O$3)) -> 0 | J5: =SUMPRODUCT([1]План!$D$5:$O$269*([1]План!$B$5:$B$269=J$16)*($F5=[1]План!$D$3:$O$3)) -> 0 | K5: =SUMPRODUCT([1]План!$D$5:$O$269*([1]План!$B$5:$B$269=K$16)*($F5=[1]План!$D$3:$O$3)) -> 0
F6: Май | H6: =SUMPRODUCT([1]План!$D$5:$O$269*([1]План!$B$5:$B$269=H$16)*($F6=[1]План!$D$3:$O$3)) -> 0 | I6: =SUMPRODUCT([1]План!$D$5:$O$269*([1]План!$B$5:$B$269=I$16)*($F6=[1]План!$D$3:$O$3)) -> 0 | J6: =SUMPRODUCT([1]План!$D$5:$O$269*([1]План!$B$5:$B$269=J$16)*($F6=[1]План!$D$3:$O$3)) -> 0 | K6: =SUMPRODUCT([1]План!$D$5:$O$269*([1]План!$B$5:$B$269=K$16)*($F6=[1]План!$D$3:$O$3)) -> 0
F7: Июнь | G7: =SUMPRODUCT([1]План!$D$5:$O$269*([1]План!$B$5:$B$269=G$16)*($F7=[1]План!$D$3:$O$3)) -> 0 | H7: =SUMPRODUCT([1]План!$D$5:$O$269*([1]План!$B$5:$B$269=H$16)*($F7=[1]План!$D$3:$O$3)) -> 0 | I7: =SUMPRODUCT([1]План!$D$5:$O$269*([1]План!$B$5:$B$269=I$16)*($F7=[1]План!$D$3:$O$3)) -> 0 | J7: =SUMPRODUCT([1]План!$D$5:$O$269*([1]План!$B$5:$B$269=J$16)*($F7=[1]План!$D$3:$O$3)) -> 0 | K7: =SUMPRODUCT([1]План!$D$5:$O$269*([1]План!$B$5:$B$269=K$16)*($F7=[1]План!$D$3:$O$3)) -> 0
F8: Июль | G8: =SUMPRODUCT([1]План!$D$5:$O$269*([1]План!$B$5:$B$269=G$16)*($F8=[1]План!$D$3:$O$3)) -> 0 | H8: =SUMPRODUCT([1]План!$D$5:$O$269*([1]План!$B$5:$B$269=H$16)*($F8=[1]План!$D$3:$O$3)) -> 0 | I8: =SUMPRODUCT([1]План!$D$5:$O$269*([1]План!$B$5:$B$269=I$16)*($F8=[1]План!$D$3:$O$3)) -> 0 | J8: =SUMPRODUCT([1]План!$D$5:$O$269*([1]План!$B$5:$B$269=J$16)*($F8=[1]План!$D$3:$O$3)) -> 0 | K8: =SUMPRODUCT([1]План!$D$5:$O$269*([1]План!$B$5:$B$269=K$16)*($F8=[1]План!$D$3:$O$3)) -> 0
F9: Август | G9: =SUMPRODUCT([1]План!$D$5:$O$269*([1]План!$B$5:$B$269=G$16)*($F9=[1]План!$D$3:$O$3)) -> 0 | H9: =SUMPRODUCT([1]План!$D$5:$O$269*([1]План!$B$5:$B$269=H$16)*($F9=[1]План!$D$3:$O$3)) -> 0 | I9: =SUMPRODUCT([1]План!$D$5:$O$269*([1]План!$B$5:$B$269=I$16)*($F9=[1]План!$D$3:$O$3)) -> 0 | J9: =SUMPRODUCT([1]План!$D$5:$O$269*([1]План!$B$5:$B$269=J$16)*($F9=[1]План!$D$3:$O$3)) -> 0 | K9: =SUMPRODUCT([1]План!$D$5:$O$269*([1]План!$B$5:$B$269=K$16)*($F9=[1]План!$D$3:$O$3)) -> 0
F10: Сентябрь | G10: =SUMPRODUCT([1]План!$D$5:$O$269*([1]План!$B$5:$B$269=G$16)*($F10=[1]План!$D$3:$O$3)) -> 0 | H10: =SUMPRODUCT([1]План!$D$5:$O$269*([1]План!$B$5:$B$269=H$16)*($F10=[1]План!$D$3:$O$3)) -> 0 | I10: =SUMPRODUCT([1]План!$D$5:$O$269*([1]План!$B$5:$B$269=I$16)*($F10=[1]План!$D$3:$O$3)) -> 0 | J10: =SUMPRODUCT([1]План!$D$5:$O$269*([1]План!$B$5:$B$269=J$16)*($F10=[1]План!$D$3:$O$3)) -> 0 | K10: =SUMPRODUCT([1]План!$D$5:$O$269*([1]План!$B$5:$B$269=K$16)*($F10=[1]План!$D$3:$O$3)) -> 0
F11: Октябрь | G11: =SUMPRODUCT([1]План!$D$5:$O$269*([1]План!$B$5:$B$269=G$16)*($F11=[1]План!$D$3:$O$3)) -> 0 | H11: =SUMPRODUCT([1]План!$D$5:$O$269*([1]План!$B$5:$B$269=H$16)*($F11=[1]План!$D$3:$O$3)) -> 0 | I11: =SUMPRODUCT([1]План!$D$5:$O$269*([1]План!$B$5:$B$269=I$16)*($F11=[1]План!$D$3:$O$3)) -> 0 | J11: =SUMPRODUCT([1]План!$D$5:$O$269*([1]План!$B$5:$B$269=J$16)*($F11=[1]План!$D$3:$O$3)) -> 0 | K11: =SUMPRODUCT([1]План!$D$5:$O$269*([1]План!$B$5:$B$269=K$16)*($F11=[1]План!$D$3:$O$3)) -> 0
F12: Ноябрь | G12: =SUMPRODUCT([1]План!$D$5:$O$269*([1]План!$B$5:$B$269=G$16)*($F12=[1]План!$D$3:$O$3)) -> 0 | H12: =SUMPRODUCT([1]План!$D$5:$O$269*([1]План!$B$5:$B$269=H$16)*($F12=[1]План!$D$3:$O$3)) -> 0 | I12: =SUMPRODUCT([1]План!$D$5:$O$269*([1]План!$B$5:$B$269=I$16)*($F12=[1]План!$D$3:$O$3)) -> 0 | J12: =SUMPRODUCT([1]План!$D$5:$O$269*([1]План!$B$5:$B$269=J$16)*($F12=[1]План!$D$3:$O$3)) -> 0 | K12: =SUMPRODUCT([1]План!$D$5:$O$269*([1]План!$B$5:$B$269=K$16)*($F12=[1]План!$D$3:$O$3)) -> 0
F13: Декабрь | G13: =SUMPRODUCT([1]План!$D$5:$O$269*([1]План!$B$5:$B$269=G$16)*($F13=[1]План!$D$3:$O$3)) -> 0 | H13: =SUMPRODUCT([1]План!$D$5:$O$269*([1]План!$B$5:$B$269=H$16)*($F13=[1]План!$D$3:$O$3)) -> 0 | I13: =SUMPRODUCT([1]План!$D$5:$O$269*([1]План!$B$5:$B$269=I$16)*($F13=[1]План!$D$3:$O$3)) -> 0 | J13: =SUMPRODUCT([1]План!$D$5:$O$269*([1]План!$B$5:$B$269=J$16)*($F13=[1]План!$D$3:$O$3)) -> 0 | K13: =SUMPRODUCT([1]План!$D$5:$O$269*([1]План!$B$5:$B$269=K$16)*($F13=[1]План!$D$3:$O$3)) -> 0
N14: Остаток | P14: За год | R14: Январь | Y14: Февраль | AF14: Март | AM14: Апрель | AT14: Май | BA14: Июнь | BH14: Июль | BO14: Август | BV14: Сентябрь | CC14: Октябрь | CJ14: Ноябрь | CQ14: Декабрь
N15: ОМТС | O15: Цех | P15: План | Q15: Стоимость | R15: План | S15: Стоимость | T15: Диф. | U15: Приход | Y15: План | Z15: Стоимость | AA15: Диф. | AB15: Приход | AF15: План | AG15: Стоимость | AH15: Диф. | AI15: Приход | AM15: План | AN15: Стоимость | AO15: Диф. | AP15: Приход | AT15: План | AU15: Стоимость | AV15: Диф. | AW15: Приход | BA15: План | BB15: Стоимость | BC15: Диф. | BD15: Приход | BH15: План | BI15: Стоимость | BJ15: Диф. | BK15: Приход | BO15: План | BP15: Стоимость | BQ15: Диф. | BR15: Приход | BV15: План | BW15: Стоимость | BX15: Диф. | BY15: Приход | CC15: План | CD15: Стоимость | CE15: Диф. | CF15: Приход | CJ15: План | CK15: Стоимость | CL15: Диф. | CM15: Приход | CQ15: План | CR15: Стоимость | CS15: Диф. | CT15: Приход
A16: Сварка | B16: Цех | C16: Гр.опережения | D16: Обозначение | E16: Наименование | F16: Материал | G16: ФКГП 576.50.00.000 | H16: ФКГП 576.50.00.000-01 | I16: ФКГП 576.60.00.000 | J16: ФКГП 576.70.00.000 | L16: Производитель | M16: Стоим. б/ндс | U16: 1 неделя | V16: 2 неделя | W16: 3 неделя | X16: 4 неделя | AB16: 1 неделя | AC16: 2 неделя | AD16: 3 неделя | AE16: 4 неделя | AI16: 1 неделя | AJ16: 2 неделя | AK16: 3 неделя | AL16: 4 неделя | AP16: 1 неделя | AQ16: 2 неделя | AR16: 3 неделя | AS16: 4 неделя | AW16: 1 неделя | AX16: 2 неделя | AY16: 3 неделя | AZ16: 4 неделя | BD16: 1 неделя | BE16: 2 неделя | BF16: 3 неделя | BG16: 4 неделя | BK16: 1 неделя | BL16: 2 неделя | BM16: 3 неделя | BN16: 4 неделя | BR16: 1 неделя | BS16: 2 неделя | BT16: 3 неделя | BU16: 4 неделя | BY16: 1 неделя | BZ16: 2 неделя | CA16: 3 неделя | CB16: 4 неделя | CF16: 1 неделя | CG16: 2 неделя | CH16: 3 неделя | CI16: 4 неделя | CM16: 1 неделя | CN16: 2 неделя | CO16: 3 неделя | CP16: 4 неделя | CT16: 1 неделя | CU16: 2 неделя | CV16: 3 неделя | CW16: 4 неделя
A18: 576 | B18: 61 | D18: ФКГП 576.50.00.001 | E18: Прокладка | F18: АМг3М # 2,0 | G18: 6 | H18: 6 | I18: 6 | J18: 6 | P18: =SUMIF($R$15:$CW$16,"План",R18:CW18) -> 0 | Q18: =P18*$M18 -> 0 | R18: =SUMPRODUCT(G18:K18,$G$2:$K$2) -> 0 | S18: =R18*$M18 -> 0 | T18: =SUM(U18:X18,N18,O18)-R18 -> 0 | Y18: =SUMPRODUCT(G18:K18,$G$3:$K$3) -> 0 | Z18: =Y18*$M18 -> 0 | AA18: =SUM(AB18:AE18)-Y18+T18 -> 0 | AF18: =SUMPRODUCT(G18:K18,$G$4:$K$4) -> 0 | AG18: =AF18*$M18 -> 0 | AH18: =SUM(AI18:AL18)-AF18+AA18 -> 0 | AM18: =SUMPRODUCT(G18:K18,$G$5:$K$5) -> 0 | AN18: =AM18*$M18 -> 0 | AO18: =SUM(AP18:AS18)-AM18+AH18 -> 0 | AT18: =SUMPRODUCT(G18:K18,$G$6:$K$6) -> 0 | AU18: =AT18*$M18 -> 0 | AV18: =SUM(AW18:AZ18)-AT18+AO18 -> 0 | BA18: =SUMPRODUCT(G18:K18,$G$7:$K$7) -> 0 | BB18: =BA18*$M18 -> 0 | BC18: =SUM(BD18:BG18)-BA18+AV18 -> 0 | BH18: =SUMPRODUCT(G18:K18,$G$8:$K$8) -> 0 | BI18: =BH18*$M18 -> 0 | BJ18: =SUM(BK18:BN18)-BH18+BC18 -> 0 | BO18: =SUMPRODUCT(G18:K18,$G$9:$K$9) -> 0 | BP18: =BO18*$M18 -> 0 | BQ18: =SUM(BR18:BU18)-BO18+BJ18 -> 0 | BV18: =SUMPRODUCT(G18:K18,$G$10:$K$10) -> 0 | BW18: =BV18*$M18 -> 0 | BX18: =SUM(BY18:CB18)-BV18+BQ18 -> 0 | CC18: =SUMPRODUCT(G18:K18,$G$11:$K$11) -> 0 | CD18: =CC18*$M18 -> 0 | CE18: =SUM(CF18:CI18)-CC18+BX18 -> 0 | CJ18: =SUMPRODUCT(G18:K18,$G$12:$K$12) -> 0 | CK18: =CJ18*$M18 -> 0 | CL18: =SUM(CM18:CP18)-CJ18+CE18 -> 0 | CQ18: =SUMPRODUCT(G18:K18,$G$13:$K$13) -> 0 | CR18: =CQ18*$M18 -> 0 | CS18: =SUM(CT18:CW18)-CQ18+CL18 -> 0
A19: 576 | B19: 60 | D19: ФКГП 576.50.00.002 | E19: Прокладка | F19: АМг3М # 2,0 | G19: 10 | H19: 10 | P19: =SUMIF($R$15:$CW$16,"План",R19:CW19) -> 0 | Q19: =P19*$M19 -> 0 | R19: 0 | S19: =R19*$M19 -> 0 | T19: =SUM(U19:X19,N19,O19)-R19 -> 0 | Y19: 0 | Z19: =Y19*$M19 -> 0 | AA19: =SUM(AB19:AE19)-Y19+T19 -> 0 | AF19: 0 | AG19: =AF19*$M19 -> 0 | AH19: =SUM(AI19:AL19)-AF19+AA19 -> 0 | AM19: 0 | AN19: =AM19*$M19 -> 0 | AO19: =SUM(AP19:AS19)-AM19+AH19 -> 0 | AT19: 0 | AU19: =AT19*$M19 -> 0 | AV19: =SUM(AW19:AZ19)-AT19+AO19 -> 0 | BA19: 0 | BB19: =BA19*$M19 -> 0 | BC19: =SUM(BD19:BG19)-BA19+AV19 -> 0 | BH19: 0 | BI19: =BH19*$M19 -> 0 | BJ19: =SUM(BK19:BN19)-BH19+BC19 -> 0 | BO19: 0 | BP19: =BO19*$M19 -> 0 | BQ19: =SUM(BR19:BU19)-BO19+BJ19 -> 0 | BV19: 0 | BW19: =BV19*$M19 -> 0 | BX19: =SUM(BY19:CB19)-BV19+BQ19 -> 0 | CC19: 0 | CD19: =CC19*$M19 -> 0 | CE19: =SUM(CF19:CI19)-CC19+BX19 -> 0 | CJ19: 0 | CK19: =CJ19*$M19 -> 0 | CL19: =SUM(CM19:CP19)-CJ19+CE19 -> 0 | CQ19: 0 | CR19: =CQ19*$M19 -> 0 | CS19: =SUM(CT19:CW19)-CQ19+CL19 -> 0
A20: 576 | B20: 60 | D20: ФКГП 576.50.00.002-02 | E20: Прокладка | F20: Нет чертежа | G20: 8 | P20: 0 | Q20: 0 | R20: 0 | S20: 0 | T20: 0 | Y20: 0 | Z20: 0 | AA20: 0 | AF20: 0 | AG20: 0 | AH20: 0 | AM20: 0 | AN20: 0 | AO20: 0 | AT20: 0 | AU20: 0 | AV20: 0 | BA20: 0 | BB20: 0 | BC20: 0 | BH20: 0 | BI20: 0 | BJ20: 0 | BO20: 0 | BP20: 0 | BQ20: 0 | BV20: 0 | BW20: 0 | BX20: 0 | CC20: 0 | CD20: 0 | CE20: -66 | CF20: -22 | CG20: -22 | CH20: -22 | CJ20: 0 | CK20: 0 | CL20: =SUM(CM20:CP20)-CJ20+CE20 -> 33 | CM20: 33 | CN20: 33 | CO20: 33 | CQ20: 0 | CR20: 0 | CS20: -300
A21: 576 | B21: 61 | D21: ФКГП 576.50.00.003 | E21: Прокладка | F21: АМг3М # 2,0 | G21: 6 | H21: 6 | P21: 0 | Q21: 0 | R21: 0 | S21: 0 | T21: 0 | Y21: 0 | Z21: 0 | AA21: 0 | AF21: 0 | AG21: 0 | AH21: 0 | AM21: 0 | AN21: 0 | AO21: 0 | AT21: 0 | AU21: 0 | AV21: 0 | BA21: 0 | BB21: 0 | BC21: 0 | BH21: 0 | BI21: 0 | BJ21: 0 | BO21: 0 | BP21: 0 | BQ21: 0 | BV21: 0 | BW21: 0 | BX21: 0 | CC21: 0 | CD21: 0 | CE21: 0 | CJ21: 0 | CK21: 0 | CL21: 0 | CQ21: 0 | CR21: 0 | CS21: 0
A22: 576 | B22: 61 | D22: ФКГП 576.60.00.002 | E22: Прокладка | F22: АМг3М =2 | I22: 3 | P22: 0 | Q22: 0 | R22: 0 | S22: 0 | T22: 0 | Y22: 0 | Z22: 0 | AA22: 0 | AF22: 0 | AG22: 0 | AH22: 0 | AM22: 0 | AN22: 0 | AO22: 0 | AT22: 0 | AU22: 0 | AV22: 0 | BA22: 0 | BB22: 0 | BC22: 0 | BH22: 0 | BI22: 0 | BJ22: 0 | BO22: 0 | BP22: 0 | BQ22: 0 | BV22: 0 | BW22: 0 | BX22: 0 | CC22: 0 | CD22: 0 | CE22: 0 | CJ22: 0 | CK22: 0 | CL22: 0 | CQ22: 0 | CR22: 0 | CS22: 0
A23: 576 | B23: 61 | D23: ФКГП 576.60.00.003 | E23: Прокладка | F23: АМг3М =3 | I23: 3 | P23: 0 | Q23: 0 | R23: 0 | S23: 0 | T23: 0 | Y23: 0 | Z23: 0 | AA23: 0 | AF23: 0 | AG23: 0 | AH23: 0 | AM23: 0 | AN23: 0 | AO23: 0 | AT23: 0 | AU23: 0 | AV23: 0 | BA23: 0 | BB23: 0 | BC23: 0 | BH23: 0 | BI23: 0 | BJ23: 0 | BO23: 0 | BP23: 0 | BQ23: 0 | BV23: 0 | BW23: 0 | BX23: 0 | CC23: 0 | CD23: 0 | CE23: 0 | CJ23: 0 | CK23: 0 | CL23: 0 | CQ23: 0 | CR23: 0 | CS23: 0
A24: 576 | B24: 61 | D24: ФКГП 576.60.00.007 | E24: Прокладка | I24: 1 | P24: 0 | Q24: 0 | R24: 0 | S24: 0 | T24: 0 | Y24: 0 | Z24: 0 | AA24: 0 | AF24: 0 | AG24: 0 | AH24: 0 | AM24: 0 | AN24: 0 | AO24: 0 | AT24: 0 | AU24: 0 | AV24: 0 | BA24: 0 | BB24: 0 | BC24: 0 | BH24: 0 | BI24: 0 | BJ24: 0 | BO24: 0 | BP24: 0 | BQ24: 0 | BV24: 0 | BW24: 0 | BX24: 0 | CC24: 0 | CD24: 0 | CE24: 0 | CJ24: 0 | CK24: 0 | CL24: 0 | CQ24: 0 | CR24: 0 | CS24: 0
A25: 576 | B25: 6110 | D25: ФКГП 576.50.00.010 | E25: Шайба Ц.хр | F25: 09Г2С # 4,0 | G25: 22 | H25: 24 | I25: 27 | J25: 16 | P25: 0 | Q25: 0 | R25: 0 | S25: 0 | T25: 0 | Y25: 0 | Z25: 0 | AA25: 0 | AF25: 0 | AG25: 0 | AH25: 0 | AM25: 0 | AN25: 0 | AO25: 0 | AT25: 0 | AU25: 0 | AV25: 0 | BA25: 0 | BB25: 0 | BC25: 0 | BH25: 0 | BI25: 0 | BJ25: 0 | BO25: 0 | BP25: 0 | BQ25: 0 | BV25: 0 | BW25: 0 | BX25: 0 | CC25: 0 | CD25: 0 | CE25: 0 | CJ25: 0 | CK25: 0 | CL25: 0 | CQ25: 0 | CR25: 0 | CS25: 0
